Workbook

Sheet Instruções

Sheet Retorno dividendos 2016-2021
A1: Código do fundo | B1: Nome do fundo | C1: Segmento | D1: Retorno com dividendos Jun 16 - Jun 17 (% ao ano) | E1: Retorno com dividendos Jun 17 - Jun 18 (% ao ano) | F1: Retorno com dividendos Jun 18 - Jun 19 (% ao ano) | G1: Retorno com dividendos Jun 19 - Jun 20 (% ao ano) | H1: Retorno com dividendos Jun 20 - Jun 21 (% ao ano) | I1: Taxa Média Jun 16 - Jun 21 (% ao ano)
A2: ABCP11 | B2: GRAND PLAZA SHOPPING FII | C2: Shoppings | D2: 0.05606060606 | E2: 0.06923611111 | F2: 0.05023396642 | G2: 0.05301396299 | H2: 0.04704690214 | I2: =IFERROR(AVERAGE(D2:H2),0) -> 0.05511830974
A3: ALZR11 | B3: ALIANZA TRUST RENDA IMOBILIÁRIA FII | C3: Híbrido | D3: - | E3: - | F3: 0.07510181695 | G3: 0.04741694518 | H3: 0.05317013841 | I3: 0.05856296685
A4: BARI11 | B4: BARIGUI RENDIMENTOS IMOBILIÁRIOS I FII | C4: Recebíveis | D4: - | E4: - | F4: - | G4: - | H4: 0.1357894737 | I4: 0.1357894737
A5: BBFI11B | B5: BB PROGRESSIVO FII | C5: Lajes Corporativas | D5: 0.1015258123 | E5: 0.1332449971 | F5: 0.09958440653 | G5: 0.1138272076 | H5: 0.1197869924 | I5: 0.1135938832
A6: BBPO11 | B6: BB PROGRESSIVO II FII | C6: Agências | D6: 0.08584544069 | E6: 0.09592226258 | F6: 0.0836338411 | G6: 0.07700405244 | H6: 0.1124062566 | I6: 0.09096237068
A7: BCFF11 | B7: BTG PACTUAL FUNDO DE FUNDOS FII | C7: Fundo de Fundos | D7: 0.09297624636 | E7: 0.07793755349 | F7: 0.07092515941 | G7: 0.0652819584 | H7: 0.07649234068 | I7: 0.07672265167
A8: BCIA11 | B8: BRADESCO CARTEIRA IMOBILIÁRIA ATIVA FII | C8: Fundo de Fundos | D8: 0.09400373768 | E8: 0.07776744186 | F8: 0.07269920734 | G8: 0.07907829275 | H8: 0.08337151471 | I8: 0.08138403887
A9: BCRI11 | B9: BANESTES RECEBÍVEIS IMOBILIÁRIOS FII | C9: Recebíveis | D9: 0.1100588086 | E9: 0.07889432767 | F9: 0.08341688745 | G9: 0.08409532259 | H9: 0.1097753963 | I9: 0.09324814852
A10: BPFF11 | B10: BRASIL PLURAL ABSOLUTO FUNDO DE FUNDOS FII | C10: Fundo de Fundos | D10: 0.08852988691 | E10: 0.09059350504 | F10: 0.0793767765 | G10: 0.09250550641 | H10: 0.08469909532 | I10: 0.08714095404
A11: BRCO11 | B11: BRESCO LOGÍSTICA FII | C11: Logística | D11: - | E11: - | F11: - | G11: - | H11: 0.06534230239 | I11: 0.06534230239
A12: BRCR11 | B12: BTG PACTUAL CORPORATE OFFICE FUND FII | C12: Lajes Corporativas | D12: 0.09141598562 | E12: 0.05236790286 | F12: 0.1634588136 | G12: 0.06296903219 | H12: 0.06940844898 | I12: 0.08792403665
A13: BTCR11 | B13: BTG PACTUAL CRÉDITO IMOBILIÁRIO FII | C13: Recebíveis | D13: - | E13: - | F13: - | G13: 0.07241521265 | H13: 0.06726664642 | I13: 0.06984092954
A14: BTLG11 | B14: BTG PACTUAL LOGÍSTICA FII | C14: Logística | D14: 0.08249780997 | E14: 0.05885887749 | F14: 0.04139458892 | G14: 0.05319825562 | H14: 0.06488008547 | I14: 0.06016592349
A15: BZLI11 | B15: BRAZIL REALTY FII | C15: Híbrido | D15: - | E15: - | F15: 0 | G15: 0 | H15: 0 | I15: 0
A16: CPFF11 | B16: CAPITÂNIA REIT FOF FII | C16: Fundo de Fundos | D16: - | E16: - | F16: - | G16: - | H16: 0.08627783156 | I16: 0.08627783156
A17: CPTS11 | B17: CAPITÂNIA SECURITIES II FII | C17: Recebíveis | D17: 0.1293393783 | E17: 0.09113720767 | F17: 0.08888677631 | G17: 0.07592186892 | H17: 0.1077050088 | I17: 0.098598048
A18: CVBI11 | B18: VBI CRI FII | C18: Recebíveis | D18: - | E18: - | F18: - | G18: - | H18: 0.1208712315 | I18: 0.1208712315
A19: DEVA11 | B19: DEVANT RECEBÍVEIS IMOBILIÁRIOS FII | C19: Recebíveis | D19: - | E19: - | F19: - | G19: - | H19: 0.1169 | I19: 0.1169
A20: FIGS11 | B20: GENERAL SHOPPING ATIVO E RENDA FII | C20: Shoppings | D20: 0.1290322581 | E20: 0.1449275362 | F20: 0.1330573872 | G20: 0.05447663566 | H20: 0.03292247811 | I20: 0.09888325905
A21: FIIB11 | B21: INDUSTRIAL DO BRASIL FII | C21: Logística | D21: 0.08333178821 | E21: 0.073711208 | F21: 0.06820734341 | G21: 0.06142276423 | H21: 0.06608020913 | I21: 0.0705506626
A22: FLMA11 | B22: CONTINENTAL SQUARE FARIA LIMA FII | C22: Híbrido | D22: 0.06844748858 | E22: 0.06065217391 | F22: 0.04546703297 | G22: 0.04684684685 | H22: 0.03576091687 | I22: 0.05143489184
A23: GGRC11 | B23: GGR COVEPI RENDA FII | C23: Logística | D23: - | E23: 0.07376587012 | F23: 0.06917536822 | G23: 0.06371354743 | H23: 0.0719027622 | I23: 0.06963938699
A24: GTWR11 | B24: GREEN TOWERS FII | C24: Lajes Corporativas | D24: - | E24: - | F24: - | G24: 0.06793793161 | H24: 0.0811647619 | I24: 0.07455134675
A25: HABT11 | B25: HABITAT RECEBÍVEIS PULVERIZADOS FII | C25: Recebíveis | D25: - | E25: - | F25: - | G25: - | H25: 0.1264044944 | I25: 0.1264044944
A26: HCTR11 | B26: HECTARE CE FII | C26: Recebíveis | D26: - | E26: - | F26: - | G26: - | H26: 0.1613853628 | I26: 0.1613853628
A27: HFOF11 | B27: HEDGE TOP FOFII 3 FII | C27: Fundo de Fundos | D27: - | E27: - | F27: 0.08550605251 | G27: 0.08336767721 | H27: 0.0766134154 | I27: 0.08182904837
A28: HGBS11 | B28: HEDGE BRASIL SHOPPING FII | C28: Shoppings | D28: 0.07465309898 | E28: 0.06917808219 | F28: 0.06028702865 | G28: 0.06883949999 | H28: 0.02761909493 | I28: 0.06011536095
A29: HGCR11 | B29: CSHG RECEBÍVEIS IMOBILIÁRIOS FII | C29: Recebíveis | D29: 0.1070764819 | E29: 0.08341305297 | F29: 0.07662134986 | G29: 0.07108532888 | H29: 0.0685759654 | I29: 0.0813544358
A30: HGFF11 | B30: CSHG IMOBILIÁRIO FOF FII | C30: Fundo de Fundos | D30: - | E30: - | F30: - | G30: - | H30: 0.08486781262 | I30: 0.08486781262
A31: HGLG11 | B31: CSHG LOGÍSTICA FII | C31: Logística | D31: 0.08385542169 | E31: 0.08216961647 | F31: 0.05843539018 | G31: 0.04880488575 | H31: 0.0664322639 | I31: 0.0679395156
A32: HGPO11 | B32: CSHG PRIME OFFICES FII | C32: Lajes Corporativas | D32: 0.06860377358 | E32: 0.06 | F32: 0.04921052632 | G32: 0.05082524272 | H32: 0.05382143503 | I32: 0.05649219553
A33: HGRE11 | B33: CSHG REAL ESTATE FII | C33: Lajes Corporativas | D33: 0.08254716981 | E33: 0.08758278146 | F33: 0.05570093458 | G33: 0.05799314326 | H33: 0.06135904568 | I33: 0.06903661496
A34: HGRU11 | B34: CSHG RENDA URBANA FII | C34: Híbrido | D34: - | E34: - | F34: - | G34: 0.06234769508 | H34: 0.06990772021 | I34: =IFERROR(AVERAGE(D34:H34),0) -> 0.06612770765
A35: HSLG11 | B35: HSI LOGÍSTICA FII | C35: Logística | D35: - | E35: - | F35: - | G35: - | H35: 0.0383 | I35: 0.0383
A36: HSML11 | B36: HSI MALLS FII | C36: Shoppings | D36: - | E36: - | F36: - | G36: - | H36: 0.04552572707 | I36: 0.04552572707
A37: HTMX11 | B37: HOTEL MAXINVEST FII | C37: Hotel | D37: 0.05427170565 | E37: 0.06133961984 | F37: 0.05568105797 | G37: 0.04951233851 | H37: 0 | I37: 0.04416094439
A38: IRDM11 | B38: IRIDIUM RECEBÍVEIS FII | C38: Recebíveis | D38: - | E38: - | F38: 0.0819668343 | G38: 0.08076449374 | H38: 0.1053493747 | I38: 0.08936023425
A39: JSRE11 | B39: JS REAL ESTATE MULTIGESTÃO FII | C39: Lajes Corporativas | D39: 0.1033386328 | E39: 0.07447641417 | F39: 0.05991568751 | G39: 0.05960091299 | H39: 0.07016759777 | I39: 0.07349984905
A40: KFOF11 | B40: KINEA FUNDO DE FUNDOS IMOBILIÁRIOS FII | C40: Fundo de Fundos | D40: - | E40: - | F40: - | G40: 0.05707865169 | H40: 0.0749477109 | I40: 0.0660131813
A41: KNCR11 | B41: KINEA RENDIMENTOS IMOBILIÁRIOS FII | C41: Recebíveis | D41: 0.1183426443 | E41: 0.07205607477 | F41: 0.06733238231 | G41: 0.06233766234 | H41: 0.04011111111 | I41: 0.07203597497
A42: KNHY11 | B42: KINEA HIGH YIELD CRI FII | C42: Recebíveis | D42: - | E42: - | F42: - | G42: 0.07127272727 | H42: 0.1010752688 | I42: 0.08617399804
A43: KNIP11 | B43: KINEA ÍNDICES DE PREÇOS FII | C43: Recebíveis | D43: - | E43: 0.07377968955 | F43: 0.07242798354 | G43: 0.07200361827 | H43: 0.1067852129 | I43: 0.08124912606
A44: KNRI11 | B44: KINEA RENDA IMOBILIÁRIA FII | C44: Híbrido | D44: 0.07394507703 | E44: 0.07382974244 | F44: 0.06081825845 | G44: 0.05096483959 | H44: 0.05771589351 | I44: 0.0634547622
A45: KNSC11 | B45: KINEA SECURITIES FII | C45: Recebíveis | D45: - | E45: - | F45: - | G45: - | H45: 0.0383 | I45: 0.0383
A46: LVBI11 | B46: VBI LOGISTICO FII | C46: Logística | D46: - | E46: - | F46: - | G46: 0.05895641535 | H46: 0.06063824589 | I46: 0.05979733062
A47: MALL11 | B47: MALLS BRASIL PLURAL FII | C47: Shoppings | D47: - | E47: - | F47: 0.07308066084 | G47: 0.06209786486 | H47: 0.05387840671 | I47: 0.06301897747
A48: MCCI11 | B48: MAUÁ CAPITAL RECEBÍVEIS IMOBILIÁRIOS FII | C48: Recebíveis | D48: - | E48: - | F48: - | G48: - | H48: 0.07724783224 | I48: 0.07724783224
A49: MFII11 | B49: MÉRITO DESENVOLVIMENTO IMOBILIÁRIO I FII | C49: Desenvolvimento | D49: 0.1169249537 | E49: 0.1202251203 | F49: 0.08270654315 | G49: 0.09976038339 | H49: 0.1073400275 | I49: 0.1053914056
A50: MGFF11 | B50: MOGNO FOF FII | C50: Fundo de Fundos | D50: - | E50: - | F50: 0.07430406829 | G50: 0.0813817224 | H50: 0.08678384518 | I50: 0.08082321196
A51: MXRF11 | B51: MAXI RENDA FII | C51: Recebíveis | D51: 0.1058116232 | E51: 0.07835051546 | F51: 0.07237988024 | G51: 0.08809019458 | H51: 0.08406134464 | I51: 0.08573871162
A52: OUJP11 | B52: OURINVEST JPP FII | C52: Híbrido | D52: - | E52: 0.09550092899 | F52: 0.08894833072 | G52: 0.07192251715 | H52: 0.07894859634 | I52: 0.0838300933
A53: OULG11 | B53: OURINVEST LOGÍSTICA FII | C53: Logística | D53: - | E53: - | F53: - | G53: 0.08539631753 | H53: 0.09987921081 | I53: 0.09263776417
A54: PATC11 | B54: PÁTRIA EDIFÍCIOS CORPORATIVOS FII | C54: Lajes Corporativas | D54: - | E54: - | F54: - | G54: 0.0412847884 | H54: 0.04403953057 | I54: 0.04266215949
A55: PATL11 | B55: PÁTRIA LOGÍSTICA FII | C55: Logística | D55: - | E55: - | F55: - | G55: - | H55: 0.0669 | I55: 0.0669
A56: PLCR11 | B56: PLURAL RECEBÍVEIS IMOBILIÁRIOS FII | C56: Recebíveis | D56: - | E56: - | F56: - | G56: - | H56: 0.08151882441 | I56: 0.08151882441
A57: PORD11 | B57: POLO RECEBÍVEIS IMOBILIÁRIOS II FII | C57: Recebíveis | D57: 0.1405405405 | E57: 0.08973100334 | F57: 0.1080821068 | G57: 0.116583707 | H57: 0.09906384186 | I57: 0.1108002399
A58: PVBI11 | B58: VBI PRIME PROPERTIES FII | C58: Lajes Corporativas | D58: - | E58: - | F58: - | G58: - | H58: 0.0525 | I58: 0
A59: QAGR11 | B59: QUASAR AGRO FII | C59: Logística | D59: - | E59: - | F59: - | G59: - | H59: 0.05105740375 | I59: =IFERROR(AVERAGE(D59:H59),0) -> 0.05105740375
A60: RBED11 | B60: RIO BRAVO RENDA EDUCACIONAL FII | C60: Educacional | D60: 0.09467415115 | E60: 0.09409898477 | F60: 0.08043715847 | G60: 0.06613054954 | H60: 0.08587877154 | I60: 0.08424392309
A61: RBFF11 | B61: RIO BRAVO FUNDO DE FUNDOS FII | C61: Fundo de Fundos | D61: 0.08897321978 | E61: 0.08276034504 | F61: 0.07137681159 | G61: 0.107869044 | H61: 0.09326969047 | I61: 0.08884982218
A62: RBRD11 | B62: RB CAPITAL RENDA II FII | C62: Híbrido | D62: 0.0995626506 | E62: 0.1044557117 | F62: 0.08892414477 | G62: 0.09337855233 | H62: 0.3162049587 | I62: 0.1405052036
A63: RBRF11 | B63: RBR ALPHA MULTIESTRATÉGIA REAL ESTATE FII | C63: Fundo de Fundos | D63: - | E63: - | F63: 0.08724634187 | G63: 0.08115856833 | H63: 0.09365241355 | I63: 0.08735244125
A64: RBRP11 | B64: RBR PROPERTIES FII | C64: Lajes Corporativas | D64: - | E64: - | F64: - | G64: 0.05294704932 | H64: 0.07358011121 | I64: 0.06326358026
A65: RBRR11 | B65: RBR RENDIMENTO HIGH GRADE FII | C65: Recebíveis | D65: - | E65: - | F65: 0.07036707004 | G65: 0.06859505279 | H65: 0.07199287127 | I65: 0.07031833137
A66: RBVA11 | B66: RIO BRAVO RENDA VAREJO FII | C66: Agências | D66: 0.07760207869 | E66: 0.0870754717 | F66: 0.06852640227 | G66: 0.0775890593 | H66: 0.09295497956 | I66: 0.0807495983
A67: RCRB11 | B67: RIO BRAVO RENDA CORPORATIVA FII | C67: Lajes Corporativas | D67: 0.08447513812 | E67: 0.07671676477 | F67: 0.04052631579 | G67: 0.05192073904 | H67: 0.07086330935 | I67: 0.06490045341
A68: RECR11 | B68: REC RECEBÍVEIS IMOBILIÁRIOS FII | C68: Recebíveis | D68: - | E68: - | F68: 0.1143401539 | G68: 0.09000470274 | H68: 0.1266364374 | I68: 0.110327098
A69: RECT11 | B69: REC RENDA IMOBILIÁRIA FII | C69: Híbrido | D69: - | E69: - | F69: - | G69: 0.09614315683 | H69: 0.1089382216 | I69: 0.1025406892
A70: RFOF11 | B70: RB CAPITAL I FUNDO DE FUNDOS FII | C70: Fundo de Fundos | D70: - | E70: - | F70: - | G70: - | H70: 0.07984467904 | I70: 0.07984467904
A71: RNGO11 | B71: RIO NEGRO FII | C71: Lajes Corporativas | D71: 0.08474007826 | E71: 0.08052013003 | F71: 0.0728088767 | G71: 0.07203336282 | H71: 0.0828210935 | I71: 0.07858470826
A72: RVBI11 | B72: VBI REITS FOF FII | C72: Fundo de Fundos | D72: - | E72: - | F72: - | G72: - | H72: 0.08805970149 | I72: 0.08805970149
A73: RZTR11 | B73: RIZA TERRAX FII | C73: Rural | D73: - | E73: - | F73: - | G73: - | H73: 0.0641 | I73: 0.0641
A74: SADI11 | B74: SANTANDER PAPÉIS IMOBILIÁRIOS CDI FII | C74: Recebíveis | D74: - | E74: - | F74: - | G74: - | H74: 0.02863529412 | I74: 0.02863529412
A75: SARE11 | B75: SANTANDER RENDA DE ALUGUÉIS FII | C75: Híbrido | D75: - | E75: - | F75: - | G75: - | H75: 0.04880847391 | I75: 0.04880847391
A76: SDIL11 | B76: SDI RIO BRAVO RENDA LOGÍSTICA FII | C76: Logística | D76: 0.07597765363 | E76: 0.08746987952 | F76: 0.06530764823 | G76: 0.0604981036 | H76: 0.07420752169 | I76: 0.07269216133
A77: SPTW11 | B77: SP DOWNTOWN FII | C77: Lajes Corporativas | D77: 0.1057407406 | E77: 0.08954293629 | F77: 0.07974554129 | G77: 0.1063012295 | H77: 0.1962630153 | I77: 0.1155186926
A78: TEPP11 | B78: TELLUS PROPERTIES FII | C78: Lajes Corporativas | D78: - | E78: - | F78: - | G78: - | H78: 0.07410714286 | I78: 0.07410714286
A79: TGAR11 | B79: TG ATIVO REAL FII | C79: Híbrido | D79: - | E79: - | F79: 0.07588047258 | G79: 0.08241726478 | H79: 0.105432163 | I79: 0.08790996679
A80: TORD11 | B80: TORDESILHAS EI FII | C80: Híbrido | D80: - | E80: - | F80: - | G80: - | H80: 0.1213774509 | I80: 0.1213774509
A81: TRXF11 | B81: TRX REAL ESTATE FII | C81: Híbrido | D81: - | E81: - | F81: - | G81: - | H81: 0.07468159052 | I81: 0.07468159052
A82: URPR11 | B82: URCA PRIME RENDA FII | C82: Recebíveis | D82: - | E82: - | F82: - | G82: - | H82: 0.1905 | I82: 0.1905
A83: VCJR11 | B83: VECTIS JUROS REAL FII | C83: Recebíveis | D83: - | E83: - | F83: - | G83: - | H83: 0.09238845144 | I83: 0.09238845144
A84: VGIP11 | B84: VALORA CRI ÍNDICE DE PREÇO FII | C84: Recebíveis | D84: - | E84: - | F84: - | G84: - | H84: 0.1148105231 | I84: 0.1148105231
A85: VGIR11 | B85: VALORA RE III FII | C85: Recebíveis | D85: - | E85: - | F85: - | G85: 0.08617462569 | H85: 0.06133806137 | I85: 0.07375634353
A86: VILG11 | B86: VINCI LOGÍSTICA FII | C86: Logística | D86: - | E86: - | F86: - | G86: 0.05922780047 | H86: 0.06015114806 | I86: 0.05968947427
A87: VINO11 | B87: VINCI OFFICES FII | C87: Lajes Corporativas | D87: - | E87: - | F87: - | G87: - | H87: 0.08142881143 | I87: 0.08142881143
A88: VISC11 | B88: VINCI SHOPPING CENTERS FII | C88: Shoppings | D88: - | E88: - | F88: 0.06658251519 | G88: 0.0680750528 | H88: 0.03761682243 | I88: 0.05742479681
A89: VRTA11 | B89: FATOR VERITA FII | C89: Recebíveis | D89: 0.1249489497 | E89: 0.0829588015 | F89: 0.08011310085 | G89: 0.08016406663 | H89: 0.08841240876 | I89: 0.09131946549
A90: VTLT11 | B90: VOTORANTIM LOGÍSTICA FII | C90: Logística | D90: - | E90: - | F90: 0.08148207227 | G90: 0.08089469027 | H90: 0.07846071878 | I90: 0.08027916044
A91: XPCI11 | B91: XP CRÉDITO IMOBILIÁRIO FII | C91: Recebíveis | D91: - | E91: - | F91: - | G91: - | H91: 0.08706467662 | I91: 0.08706467662
A92: XPCM11 | B92: XP CORPORATE MACAÉ FII | C92: Lajes Corporativas | D92: 0.1057562077 | E92: 0.10236822 | F92: 0.09619512195 | G92: 0.1581858407 | H92: 0.2133651551 | I92: 0.1351741091
A93: XPIN11 | B93: XP INDUSTRIAL FII | C93: Logística | D93: - | E93: - | F93: - | G93: 0.05947849509 | H93: 0.07404954802 | I93: 0.06676402155
A94: XPLG11 | B94: XP LOG FII | C94: Logística | D94: - | E94: - | F94: 0.06692055726 | G94: 0.05459087724 | H94: 0.06621130417 | I94: 0.06257424622
A95: XPML11 | B95: XP MALLS FII | C95: Shoppings | D95: - | E95: - | F95: 0.05927265848 | G95: 0.04584242538 | H95: 0.03762942662 | I95: 0.04758150349
A96: XPPR11 | B96: XP PROPERTIES FII | C96: Híbrido | D96: - | E96: - | F96: - | G96: - | H96: 0.1110455503 | I96: 0.1110455503
A97: XPSF11 | B97: XP SELECTION FUNDO DE FUNDOS FII | C97: Fundo de Fundos | D97: - | E97: - | F97: - | G97: - | H97: 0.0954849932 | I97: 0.0954849932

Sheet Retorno dividendos por segmento
A1: Segmento dos FIIs | B1: Retorno com dividendos Jun 16 - Jun 17 (% ao ano) | C1: Retorno com dividendos Jun 17 - Jun 18 (% ao ano) | D1: Retorno com dividendos Jun 18 - Jun 19 (% ao ano) | E1: Retorno com dividendos Jun 19 - Jun 20 (% ao ano) | F1: Retorno com dividendos Jun 20 - Jun 21 (% ao ano) | G1: Taxa Média Jun 16 - Jun 21 (% ao ano) | H1: Quantidade de fundos
A2: Shoppings | B2: =IFERROR(AVERAGEIF('Retorno dividendos 2016-2021'!$C:$C,'Retorno dividendos por segmento'!$A2,'Retorno dividendos 2016-2021'!D:D),"-") -> 0.08658198771 | C2: =IFERROR(AVERAGEIF('Retorno dividendos 2016-2021'!$C:$C,'Retorno dividendos por segmento'!$A2,'Retorno dividendos 2016-2021'!E:E),"-") -> 0.09444724317 | D2: =IFERROR(AVERAGEIF('Retorno dividendos 2016-2021'!$C:$C,'Retorno dividendos por segmento'!$A2,'Retorno dividendos 2016-2021'!F:F),"-") -> 0.07375236946 | E2: =IFERROR(AVERAGEIF('Retorno dividendos 2016-2021'!$C:$C,'Retorno dividendos por segmento'!$A2,'Retorno dividendos 2016-2021'!G:G),"-") -> 0.05872424028 | F2: =IFERROR(AVERAGEIF('Retorno dividendos 2016-2021'!$C:$C,'Retorno dividendos por segmento'!$A2,'Retorno dividendos 2016-2021'!H:H),"-") -> 0.04031983686 | G2: =AVERAGE(B2:F2) -> 0.0707651355 | H2: =COUNTIF('Retorno dividendos 2016-2021'!C:C,'Retorno dividendos por segmento'!A2) -> 7
A3: Híbrido | B3: =IFERROR(AVERAGEIF('Retorno dividendos 2016-2021'!$C:$C,'Retorno dividendos por segmento'!$A3,'Retorno dividendos 2016-2021'!D:D),"-") -> 0.08065173874 | C3: =IFERROR(AVERAGEIF('Retorno dividendos 2016-2021'!$C:$C,'Retorno dividendos por segmento'!$A3,'Retorno dividendos 2016-2021'!E:E),"-") -> 0.08360963926 | D3: =IFERROR(AVERAGEIF('Retorno dividendos 2016-2021'!$C:$C,'Retorno dividendos por segmento'!$A3,'Retorno dividendos 2016-2021'!F:F),"-") -> 0.06216286521 | E3: =IFERROR(AVERAGEIF('Retorno dividendos 2016-2021'!$C:$C,'Retorno dividendos por segmento'!$A3,'Retorno dividendos 2016-2021'!G:G),"-") -> 0.06127086864 | F3: =IFERROR(AVERAGEIF('Retorno dividendos 2016-2021'!$C:$C,'Retorno dividendos por segmento'!$A3,'Retorno dividendos 2016-2021'!H:H),"-") -> 0.09092243648 | G3: 0.07572350967 | H3: =COUNTIF('Retorno dividendos 2016-2021'!C:C,'Retorno dividendos por segmento'!A3) -> 13
A4: Recebíveis | B4: =IFERROR(AVERAGEIF('Retorno dividendos 2016-2021'!$C:$C,'Retorno dividendos por segmento'!$A4,'Retorno dividendos 2016-2021'!D:D),"-") -> 0.1194454895 | C4: =IFERROR(AVERAGEIF('Retorno dividendos 2016-2021'!$C:$C,'Retorno dividendos por segmento'!$A4,'Retorno dividendos 2016-2021'!E:E),"-") -> 0.08129008412 | D4: =IFERROR(AVERAGEIF('Retorno dividendos 2016-2021'!$C:$C,'Retorno dividendos por segmento'!$A4,'Retorno dividendos 2016-2021'!F:F),"-") -> 0.08326677505 | E4: =IFERROR(AVERAGEIF('Retorno dividendos 2016-2021'!$C:$C,'Retorno dividendos por segmento'!$A4,'Retorno dividendos 2016-2021'!G:G),"-") -> 0.07996489886 | F4: =IFERROR(AVERAGEIF('Retorno dividendos 2016-2021'!$C:$C,'Retorno dividendos por segmento'!$A4,'Retorno dividendos 2016-2021'!H:H),"-") -> 0.09666537459 | G4: 0.09212652443 | H4: =COUNTIF('Retorno dividendos 2016-2021'!C:C,'Retorno dividendos por segmento'!A4) -> 27
A5: Fundo de Fundos | B5: =IFERROR(AVERAGEIF('Retorno dividendos 2016-2021'!$C:$C,'Retorno dividendos por segmento'!$A5,'Retorno dividendos 2016-2021'!D:D),"-") -> 0.09112077268 | C5: =IFERROR(AVERAGEIF('Retorno dividendos 2016-2021'!$C:$C,'Retorno dividendos por segmento'!$A5,'Retorno dividendos 2016-2021'!E:E),"-") -> 0.08226471136 | D5: =IFERROR(AVERAGEIF('Retorno dividendos 2016-2021'!$C:$C,'Retorno dividendos por segmento'!$A5,'Retorno dividendos 2016-2021'!F:F),"-") -> 0.07734777393 | E5: =IFERROR(AVERAGEIF('Retorno dividendos 2016-2021'!$C:$C,'Retorno dividendos por segmento'!$A5,'Retorno dividendos 2016-2021'!G:G),"-") -> 0.08096517765 | F5: =IFERROR(AVERAGEIF('Retorno dividendos 2016-2021'!$C:$C,'Retorno dividendos por segmento'!$A5,'Retorno dividendos 2016-2021'!H:H),"-") -> 0.08495115724 | G5: 0.08332991857 | H5: =COUNTIF('Retorno dividendos 2016-2021'!C:C,'Retorno dividendos por segmento'!A5) -> 13
A6: Lajes Corporativas | B6: =IFERROR(AVERAGEIF('Retorno dividendos 2016-2021'!$C:$C,'Retorno dividendos por segmento'!$A6,'Retorno dividendos 2016-2021'!D:D),"-") -> 0.09201594875 | C6: =IFERROR(AVERAGEIF('Retorno dividendos 2016-2021'!$C:$C,'Retorno dividendos por segmento'!$A6,'Retorno dividendos 2016-2021'!E:E),"-") -> 0.08409112741 | D6: =IFERROR(AVERAGEIF('Retorno dividendos 2016-2021'!$C:$C,'Retorno dividendos por segmento'!$A6,'Retorno dividendos 2016-2021'!F:F),"-") -> 0.07968291381 | E6: =IFERROR(AVERAGEIF('Retorno dividendos 2016-2021'!$C:$C,'Retorno dividendos por segmento'!$A6,'Retorno dividendos 2016-2021'!G:G),"-") -> 0.07465220668 | F6: =IFERROR(AVERAGEIF('Retorno dividendos 2016-2021'!$C:$C,'Retorno dividendos por segmento'!$A6,'Retorno dividendos 2016-2021'!H:H),"-") -> 0.08964509674 | G6: 0.08401745868 | H6: =COUNTIF('Retorno dividendos 2016-2021'!C:C,'Retorno dividendos por segmento'!A6) -> 15
A7: Logística | B7: =IFERROR(AVERAGEIF('Retorno dividendos 2016-2021'!$C:$C,'Retorno dividendos por segmento'!$A7,'Retorno dividendos 2016-2021'!D:D),"-") -> 0.08141566837 | C7: =IFERROR(AVERAGEIF('Retorno dividendos 2016-2021'!$C:$C,'Retorno dividendos por segmento'!$A7,'Retorno dividendos 2016-2021'!E:E),"-") -> 0.07519509032 | D7: =IFERROR(AVERAGEIF('Retorno dividendos 2016-2021'!$C:$C,'Retorno dividendos por segmento'!$A7,'Retorno dividendos 2016-2021'!F:F),"-") -> 0.06441756693 | E7: =IFERROR(AVERAGEIF('Retorno dividendos 2016-2021'!$C:$C,'Retorno dividendos por segmento'!$A7,'Retorno dividendos 2016-2021'!G:G),"-") -> 0.06238019569 | F7: =IFERROR(AVERAGEIF('Retorno dividendos 2016-2021'!$C:$C,'Retorno dividendos por segmento'!$A7,'Retorno dividendos 2016-2021'!H:H),"-") -> 0.06696618162 | G7: 0.07007494059 | H7: =COUNTIF('Retorno dividendos 2016-2021'!C:C,'Retorno dividendos por segmento'!A7) -> 15
A8: Hotel | B8: =IFERROR(AVERAGEIF('Retorno dividendos 2016-2021'!$C:$C,'Retorno dividendos por segmento'!$A8,'Retorno dividendos 2016-2021'!D:D),"-") -> 0.05427170565 | C8: =IFERROR(AVERAGEIF('Retorno dividendos 2016-2021'!$C:$C,'Retorno dividendos por segmento'!$A8,'Retorno dividendos 2016-2021'!E:E),"-") -> 0.06133961984 | D8: =IFERROR(AVERAGEIF('Retorno dividendos 2016-2021'!$C:$C,'Retorno dividendos por segmento'!$A8,'Retorno dividendos 2016-2021'!F:F),"-") -> 0.05568105797 | E8: =IFERROR(AVERAGEIF('Retorno dividendos 2016-2021'!$C:$C,'Retorno dividendos por segmento'!$A8,'Retorno dividendos 2016-2021'!G:G),"-") -> 0.04951233851 | F8: =IFERROR(AVERAGEIF('Retorno dividendos 2016-2021'!$C:$C,'Retorno dividendos por segmento'!$A8,'Retorno dividendos 2016-2021'!H:H),"-") -> 0 | G8: 0.04416094439 | H8: =COUNTIF('Retorno dividendos 2016-2021'!C:C,'Retorno dividendos por segmento'!A8) -> 1
A9: Educacional | B9: =IFERROR(AVERAGEIF('Retorno dividendos 2016-2021'!$C:$C,'Retorno dividendos por segmento'!$A9,'Retorno dividendos 2016-2021'!D:D),"-") -> 0.09467415115 | C9: =IFERROR(AVERAGEIF('Retorno dividendos 2016-2021'!$C:$C,'Retorno dividendos por segmento'!$A9,'Retorno dividendos 2016-2021'!E:E),"-") -> 0.09409898477 | D9: =IFERROR(AVERAGEIF('Retorno dividendos 2016-2021'!$C:$C,'Retorno dividendos por segmento'!$A9,'Retorno dividendos 2016-2021'!F:F),"-") -> 0.08043715847 | E9: =IFERROR(AVERAGEIF('Retorno dividendos 2016-2021'!$C:$C,'Retorno dividendos por segmento'!$A9,'Retorno dividendos 2016-2021'!G:G),"-") -> 0.06613054954 | F9: =IFERROR(AVERAGEIF('Retorno dividendos 2016-2021'!$C:$C,'Retorno dividendos por segmento'!$A9,'Retorno dividendos 2016-2021'!H:H),"-") -> 0.08587877154 | G9: 0.08424392309 | H9: =COUNTIF('Retorno dividendos 2016-2021'!C:C,'Retorno dividendos por segmento'!A9) -> 1
A10: Agências | B10: =IFERROR(AVERAGEIF('Retorno dividendos 2016-2021'!$C:$C,'Retorno dividendos por segmento'!$A10,'Retorno dividendos 2016-2021'!D:D),"-") -> 0.08172375969 | C10: =IFERROR(AVERAGEIF('Retorno dividendos 2016-2021'!$C:$C,'Retorno dividendos por segmento'!$A10,'Retorno dividendos 2016-2021'!E:E),"-") -> 0.09149886714 | D10: =IFERROR(AVERAGEIF('Retorno dividendos 2016-2021'!$C:$C,'Retorno dividendos por segmento'!$A10,'Retorno dividendos 2016-2021'!F:F),"-") -> 0.07608012169 | E10: =IFERROR(AVERAGEIF('Retorno dividendos 2016-2021'!$C:$C,'Retorno dividendos por segmento'!$A10,'Retorno dividendos 2016-2021'!G:G),"-") -> 0.07729655587 | F10: =IFERROR(AVERAGEIF('Retorno dividendos 2016-2021'!$C:$C,'Retorno dividendos por segmento'!$A10,'Retorno dividendos 2016-2021'!H:H),"-") -> 0.1026806181 | G10: 0.08585598449 | H10: =COUNTIF('Retorno dividendos 2016-2021'!C:C,'Retorno dividendos por segmento'!A10) -> 2
A11: Rural | B11: =IFERROR(AVERAGEIF('Retorno dividendos 2016-2021'!$C:$C,'Retorno dividendos por segmento'!$A11,'Retorno dividendos 2016-2021'!D:D),"-") -> - | C11: =IFERROR(AVERAGEIF('Retorno dividendos 2016-2021'!$C:$C,'Retorno dividendos por segmento'!$A11,'Retorno dividendos 2016-2021'!E:E),"-") -> - | D11: =IFERROR(AVERAGEIF('Retorno dividendos 2016-2021'!$C:$C,'Retorno dividendos por segmento'!$A11,'Retorno dividendos 2016-2021'!F:F),"-") -> - | E11: =IFERROR(AVERAGEIF('Retorno dividendos 2016-2021'!$C:$C,'Retorno dividendos por segmento'!$A11,'Retorno dividendos 2016-2021'!G:G),"-") -> - | F11: =IFERROR(AVERAGEIF('Retorno dividendos 2016-2021'!$C:$C,'Retorno dividendos por segmento'!$A11,'Retorno dividendos 2016-2021'!H:H),"-") -> 0.0641 | G11: 0.0641 | H11: =COUNTIF('Retorno dividendos 2016-2021'!C:C,'Retorno dividendos por segmento'!A11) -> 1
A12: Desenvolvimento | B12: =IFERROR(AVERAGEIF('Retorno dividendos 2016-2021'!$C:$C,'Retorno dividendos por segmento'!$A12,'Retorno dividendos 2016-2021'!D:D),"-") -> 0.1169249537 | C12: =IFERROR(AVERAGEIF('Retorno dividendos 2016-2021'!$C:$C,'Retorno dividendos por segmento'!$A12,'Retorno dividendos 2016-2021'!E:E),"-") -> 0.1202251203 | D12: =IFERROR(AVERAGEIF('Retorno dividendos 2016-2021'!$C:$C,'Retorno dividendos por segmento'!$A12,'Retorno dividendos 2016-2021'!F:F),"-") -> 0.08270654315 | E12: =IFERROR(AVERAGEIF('Retorno dividendos 2016-2021'!$C:$C,'Retorno dividendos por segmento'!$A12,'Retorno dividendos 2016-2021'!G:G),"-") -> 0.09976038339 | F12: =IFERROR(AVERAGEIF('Retorno dividendos 2016-2021'!$C:$C,'Retorno dividendos por segmento'!$A12,'Retorno dividendos 2016-2021'!H:H),"-") -> 0.1073400275 | G12: 0.1053914056 | H12: =COUNTIF('Retorno dividendos 2016-2021'!C:C,'Retorno dividendos por segmento'!A12) -> 1

Sheet Renda de R$ 1.000 por mês
A1: Código do fundo | B1: Nome do fundo | C1: Segmento | D1: Retorno com dividendos Jun 20 - Jun 21 (% ao ano) | E1: Investimento necessário para obter renda mensal de R$ 1.000 (Jun 20 - Jun 21) | F1: Retorno com dividendos Jun 16 - Jun 21 (% ao ano) | G1: Investimento necessário para obter renda mensal de R$ 1.000 (Jun 16 - Jun 21)
A2: ABCP11 | B2: GRAND PLAZA SHOPPING FII | C2: Shoppings | D2: =VLOOKUP(A2,'Retorno dividendos 2016-2021'!A:I,8,0) -> 0.04704690214 | E2: =IFERROR(12000/D2,0) -> 255064.6154 | F2: =VLOOKUP(A2,'Retorno dividendos 2016-2021'!A:I,9,0) -> 0.05511830974 | G2: =IFERROR(12000/F2,0) -> 217713.4977
A3: ALZR11 | B3: ALIANZA TRUST RENDA IMOBILIÁRIA FII | C3: Híbrido | D3: =VLOOKUP(A3,'Retorno dividendos 2016-2021'!A:I,8,0) -> 0.05317013841 | E3: 225690.5917 | F3: =VLOOKUP(A3,'Retorno dividendos 2016-2021'!A:I,9,0) -> 0.05856296685 | G3: 204907.6515
A4: BARI11 | B4: BARIGUI RENDIMENTOS IMOBILIÁRIOS I FII | C4: Recebíveis | D4: =VLOOKUP(A4,'Retorno dividendos 2016-2021'!A:I,8,0) -> 0.1357894737 | E4: 88372.09301 | F4: =VLOOKUP(A4,'Retorno dividendos 2016-2021'!A:I,9,0) -> 0.1357894737 | G4: 88372.09301
A5: BBFI11B | B5: BB PROGRESSIVO FII | C5: Lajes Corporativas | D5: =VLOOKUP(A5,'Retorno dividendos 2016-2021'!A:I,8,0) -> 0.1197869924 | E5: 100177.822 | F5: =VLOOKUP(A5,'Retorno dividendos 2016-2021'!A:I,9,0) -> 0.1135938832 | G5: 105639.491
A6: BBPO11 | B6: BB PROGRESSIVO II FII | C6: Agências | D6: =VLOOKUP(A6,'Retorno dividendos 2016-2021'!A:I,8,0) -> 0.1124062566 | E6: 106755.6234 | F6: =VLOOKUP(A6,'Retorno dividendos 2016-2021'!A:I,9,0) -> 0.09096237068 | G6: 131922.6831
A7: BCFF11 | B7: BTG PACTUAL FUNDO DE FUNDOS FII | C7: Fundo de Fundos | D7: =VLOOKUP(A7,'Retorno dividendos 2016-2021'!A:I,8,0) -> 0.07649234068 | E7: 156878.4521 | F7: =VLOOKUP(A7,'Retorno dividendos 2016-2021'!A:I,9,0) -> 0.07672265167 | G7: 156407.5242
A8: BCIA11 | B8: BRADESCO CARTEIRA IMOBILIÁRIA ATIVA FII | C8: Fundo de Fundos | D8: =VLOOKUP(A8,'Retorno dividendos 2016-2021'!A:I,8,0) -> 0.08337151471 | E8: 143934.0528 | F8: =VLOOKUP(A8,'Retorno dividendos 2016-2021'!A:I,9,0) -> 0.08138403887 | G8: 147449.0596
A9: BCRI11 | B9: BANESTES RECEBÍVEIS IMOBILIÁRIOS FII | C9: Recebíveis | D9: =VLOOKUP(A9,'Retorno dividendos 2016-2021'!A:I,8,0) -> 0.1097753963 | E9: 109314.1123 | F9: =VLOOKUP(A9,'Retorno dividendos 2016-2021'!A:I,9,0) -> 0.09324814852 | G9: 128688.8822
A10: BPFF11 | B10: BRASIL PLURAL ABSOLUTO FUNDO DE FUNDOS FII | C10: Fundo de Fundos | D10: =VLOOKUP(A10,'Retorno dividendos 2016-2021'!A:I,8,0) -> 0.08469909532 | E10: 141678.0186 | F10: =VLOOKUP(A10,'Retorno dividendos 2016-2021'!A:I,9,0) -> 0.08714095404 | G10: 137707.9254
A11: BRCO11 | B11: BRESCO LOGÍSTICA FII | C11: Logística | D11: =VLOOKUP(A11,'Retorno dividendos 2016-2021'!A:I,8,0) -> 0.06534230239 | E11: 183648.2579 | F11: =VLOOKUP(A11,'Retorno dividendos 2016-2021'!A:I,9,0) -> 0.06534230239 | G11: 183648.2579
A12: BRCR11 | B12: BTG PACTUAL CORPORATE OFFICE FUND FII | C12: Lajes Corporativas | D12: =VLOOKUP(A12,'Retorno dividendos 2016-2021'!A:I,8,0) -> 0.06940844898 | E12: 172889.6147 | F12: =VLOOKUP(A12,'Retorno dividendos 2016-2021'!A:I,9,0) -> 0.08792403665 | G12: 136481.4499
A13: BTCR11 | B13: BTG PACTUAL CRÉDITO IMOBILIÁRIO FII | C13: Recebíveis | D13: =VLOOKUP(A13,'Retorno dividendos 2016-2021'!A:I,8,0) -> 0.06726664642 | E13: 178394.5036 | F13: =VLOOKUP(A13,'Retorno dividendos 2016-2021'!A:I,9,0) -> 0.06984092954 | G13: 171819.019
A14: BTLG11 | B14: BTG PACTUAL LOGÍSTICA FII | C14: Logística | D14: =VLOOKUP(A14,'Retorno dividendos 2016-2021'!A:I,8,0) -> 0.06488008547 | E14: 184956.5997 | F14: =VLOOKUP(A14,'Retorno dividendos 2016-2021'!A:I,9,0) -> 0.06016592349 | G14: 199448.4469
A15: BZLI11 | B15: BRAZIL REALTY FII | C15: Híbrido | D15: =VLOOKUP(A15,'Retorno dividendos 2016-2021'!A:I,8,0) -> 0 | E15: 0 | F15: =VLOOKUP(A15,'Retorno dividendos 2016-2021'!A:I,9,0) -> 0 | G15: 0
A16: CPFF11 | B16: CAPITÂNIA REIT FOF FII | C16: Fundo de Fundos | D16: =VLOOKUP(A16,'Retorno dividendos 2016-2021'!A:I,8,0) -> 0.08627783156 | E16: 139085.554 | F16: =VLOOKUP(A16,'Retorno dividendos 2016-2021'!A:I,9,0) -> 0.08627783156 | G16: 139085.554
A17: CPTS11 | B17: CAPITÂNIA SECURITIES II FII | C17: Recebíveis | D17: =VLOOKUP(A17,'Retorno dividendos 2016-2021'!A:I,8,0) -> 0.1077050088 | E17: 111415.4312 | F17: =VLOOKUP(A17,'Retorno dividendos 2016-2021'!A:I,9,0) -> 0.098598048 | G17: 121706.2634
A18: CVBI11 | B18: VBI CRI FII | C18: Recebíveis | D18: =VLOOKUP(A18,'Retorno dividendos 2016-2021'!A:I,8,0) -> 0.1208712315 | E18: 99279.2069 | F18: =VLOOKUP(A18,'Retorno dividendos 2016-2021'!A:I,9,0) -> 0.1208712315 | G18: 99279.2069
A19: DEVA11 | B19: DEVANT RECEBÍVEIS IMOBILIÁRIOS FII | C19: Recebíveis | D19: =VLOOKUP(A19,'Retorno dividendos 2016-2021'!A:I,8,0) -> 0.1169 | E19: 102651.8392 | F19: =VLOOKUP(A19,'Retorno dividendos 2016-2021'!A:I,9,0) -> 0.1169 | G19: 102651.8392
A20: FIGS11 | B20: GENERAL SHOPPING ATIVO E RENDA FII | C20: Shoppings | D20: =VLOOKUP(A20,'Retorno dividendos 2016-2021'!A:I,8,0) -> 0.03292247811 | E20: 364492.6108 | F20: =VLOOKUP(A20,'Retorno dividendos 2016-2021'!A:I,9,0) -> 0.09888325905 | G20: 121355.2235
A21: FIIB11 | B21: INDUSTRIAL DO BRASIL FII | C21: Logística | D21: =VLOOKUP(A21,'Retorno dividendos 2016-2021'!A:I,8,0) -> 0.06608020913 | E21: 181597.4882 | F21: =VLOOKUP(A21,'Retorno dividendos 2016-2021'!A:I,9,0) -> 0.0705506626 | G21: 170090.5358
A22: FLMA11 | B22: CONTINENTAL SQUARE FARIA LIMA FII | C22: Híbrido | D22: =VLOOKUP(A22,'Retorno dividendos 2016-2021'!A:I,8,0) -> 0.03576091687 | E22: 335561.8661 | F22: =VLOOKUP(A22,'Retorno dividendos 2016-2021'!A:I,9,0) -> 0.05143489184 | G22: 233304.6609
A23: GGRC11 | B23: GGR COVEPI RENDA FII | C23: Logística | D23: =VLOOKUP(A23,'Retorno dividendos 2016-2021'!A:I,8,0) -> 0.0719027622 | E23: 166892.0586 | F23: =VLOOKUP(A23,'Retorno dividendos 2016-2021'!A:I,9,0) -> 0.06963938699 | G23: 172316.2784
A24: GTWR11 | B24: GREEN TOWERS FII | C24: Lajes Corporativas | D24: =VLOOKUP(A24,'Retorno dividendos 2016-2021'!A:I,8,0) -> 0.0811647619 | E24: 147847.4121 | F24: =VLOOKUP(A24,'Retorno dividendos 2016-2021'!A:I,9,0) -> 0.07455134675 | G24: 160962.887
A25: HABT11 | B25: HABITAT RECEBÍVEIS PULVERIZADOS FII | C25: Recebíveis | D25: =VLOOKUP(A25,'Retorno dividendos 2016-2021'!A:I,8,0) -> 0.1264044944 | E25: 94933.33332 | F25: =VLOOKUP(A25,'Retorno dividendos 2016-2021'!A:I,9,0) -> 0.1264044944 | G25: 94933.33332
A26: HCTR11 | B26: HECTARE CE FII | C26: Recebíveis | D26: =VLOOKUP(A26,'Retorno dividendos 2016-2021'!A:I,8,0) -> 0.1613853628 | E26: 74356.18567 | F26: =VLOOKUP(A26,'Retorno dividendos 2016-2021'!A:I,9,0) -> 0.1613853628 | G26: 74356.18567
A27: HFOF11 | B27: HEDGE TOP FOFII 3 FII | C27: Fundo de Fundos | D27: =VLOOKUP(A27,'Retorno dividendos 2016-2021'!A:I,8,0) -> 0.0766134154 | E27: 156630.5318 | F27: =VLOOKUP(A27,'Retorno dividendos 2016-2021'!A:I,9,0) -> 0.08182904837 | G27: 146647.1899
A28: HGBS11 | B28: HEDGE BRASIL SHOPPING FII | C28: Shoppings | D28: =VLOOKUP(A28,'Retorno dividendos 2016-2021'!A:I,8,0) -> 0.02761909493 | E28: 434482.0144 | F28: =VLOOKUP(A28,'Retorno dividendos 2016-2021'!A:I,9,0) -> 0.06011536095 | G28: 199616.2014
A29: HGCR11 | B29: CSHG RECEBÍVEIS IMOBILIÁRIOS FII | C29: Recebíveis | D29: =VLOOKUP(A29,'Retorno dividendos 2016-2021'!A:I,8,0) -> 0.0685759654 | E29: 174988.4224 | F29: =VLOOKUP(A29,'Retorno dividendos 2016-2021'!A:I,9,0) -> 0.0813544358 | G29: 147502.7131
A30: HGFF11 | B30: CSHG IMOBILIÁRIO FOF FII | C30: Fundo de Fundos | D30: =VLOOKUP(A30,'Retorno dividendos 2016-2021'!A:I,8,0) -> 0.08486781262 | E30: 141396.3625 | F30: =VLOOKUP(A30,'Retorno dividendos 2016-2021'!A:I,9,0) -> 0.08486781262 | G30: 141396.3625
A31: HGLG11 | B31: CSHG LOGÍSTICA FII | C31: Logística | D31: =VLOOKUP(A31,'Retorno dividendos 2016-2021'!A:I,8,0) -> 0.0664322639 | E31: 180635.1206 | F31: =VLOOKUP(A31,'Retorno dividendos 2016-2021'!A:I,9,0) -> 0.0679395156 | G31: 176627.6944
A32: HGPO11 | B32: CSHG PRIME OFFICES FII | C32: Lajes Corporativas | D32: =VLOOKUP(A32,'Retorno dividendos 2016-2021'!A:I,8,0) -> 0.05382143503 | E32: 222959.4955 | F32: =VLOOKUP(A32,'Retorno dividendos 2016-2021'!A:I,9,0) -> 0.05649219553 | G32: 212418.7224
A33: HGRE11 | B33: CSHG REAL ESTATE FII | C33: Lajes Corporativas | D33: =VLOOKUP(A33,'Retorno dividendos 2016-2021'!A:I,8,0) -> 0.06135904568 | E33: 195570.1864 | F33: =VLOOKUP(A33,'Retorno dividendos 2016-2021'!A:I,9,0) -> 0.06903661496 | G33: 173820.8052
A34: HGRU11 | B34: CSHG RENDA URBANA FII | C34: Híbrido | D34: =VLOOKUP(A34,'Retorno dividendos 2016-2021'!A:I,8,0) -> 0.06990772021 | E34: =IFERROR(12000/D34,0) -> 171654.8611 | F34: =VLOOKUP(A34,'Retorno dividendos 2016-2021'!A:I,9,0) -> 0.06612770765 | G34: =IFERROR(12000/F34,0) -> 181467.0496
A35: HSLG11 | B35: HSI LOGÍSTICA FII | C35: Logística | D35: =VLOOKUP(A35,'Retorno dividendos 2016-2021'!A:I,8,0) -> 0.0383 | E35: 313315.9269 | F35: =VLOOKUP(A35,'Retorno dividendos 2016-2021'!A:I,9,0) -> 0.0383 | G35: 313315.9269
A36: HSML11 | B36: HSI MALLS FII | C36: Shoppings | D36: =VLOOKUP(A36,'Retorno dividendos 2016-2021'!A:I,8,0) -> 0.04552572707 | E36: 263587.2236 | F36: =VLOOKUP(A36,'Retorno dividendos 2016-2021'!A:I,9,0) -> 0.04552572707 | G36: 263587.2236
A37: HTMX11 | B37: HOTEL MAXINVEST FII | C37: Hotel | D37: =VLOOKUP(A37,'Retorno dividendos 2016-2021'!A:I,8,0) -> 0 | E37: 0 | F37: =VLOOKUP(A37,'Retorno dividendos 2016-2021'!A:I,9,0) -> 0.04416094439 | G37: 271733.3192
A38: IRDM11 | B38: IRIDIUM RECEBÍVEIS FII | C38: Recebíveis | D38: =VLOOKUP(A38,'Retorno dividendos 2016-2021'!A:I,8,0) -> 0.1053493747 | E38: 113906.7036 | F38: =VLOOKUP(A38,'Retorno dividendos 2016-2021'!A:I,9,0) -> 0.08936023425 | G38: 134287.9201
A39: JSRE11 | B39: JS REAL ESTATE MULTIGESTÃO FII | C39: Lajes Corporativas | D39: =VLOOKUP(A39,'Retorno dividendos 2016-2021'!A:I,8,0) -> 0.07016759777 | E39: 171019.1083 | F39: =VLOOKUP(A39,'Retorno dividendos 2016-2021'!A:I,9,0) -> 0.07349984905 | G39: 163265.6414
A40: KFOF11 | B40: KINEA FUNDO DE FUNDOS IMOBILIÁRIOS FII | C40: Fundo de Fundos | D40: =VLOOKUP(A40,'Retorno dividendos 2016-2021'!A:I,8,0) -> 0.0749477109 | E40: 160111.6279 | F40: =VLOOKUP(A40,'Retorno dividendos 2016-2021'!A:I,9,0) -> 0.0660131813 | G40: 181781.877
A41: KNCR11 | B41: KINEA RENDIMENTOS IMOBILIÁRIOS FII | C41: Recebíveis | D41: =VLOOKUP(A41,'Retorno dividendos 2016-2021'!A:I,8,0) -> 0.04011111111 | E41: 299168.9751 | F41: =VLOOKUP(A41,'Retorno dividendos 2016-2021'!A:I,9,0) -> 0.07203597497 | G41: 166583.4329
A42: KNHY11 | B42: KINEA HIGH YIELD CRI FII | C42: Recebíveis | D42: =VLOOKUP(A42,'Retorno dividendos 2016-2021'!A:I,8,0) -> 0.1010752688 | E42: 118723.4043 | F42: =VLOOKUP(A42,'Retorno dividendos 2016-2021'!A:I,9,0) -> 0.08617399804 | G42: 139253.1422
A43: KNIP11 | B43: KINEA ÍNDICES DE PREÇOS FII | C43: Recebíveis | D43: =VLOOKUP(A43,'Retorno dividendos 2016-2021'!A:I,8,0) -> 0.1067852129 | E43: 112375.1096 | F43: =VLOOKUP(A43,'Retorno dividendos 2016-2021'!A:I,9,0) -> 0.08124912606 | G43: 147693.8963
A44: KNRI11 | B44: KINEA RENDA IMOBILIÁRIA FII | C44: Híbrido | D44: =VLOOKUP(A44,'Retorno dividendos 2016-2021'!A:I,8,0) -> 0.05771589351 | E44: 207915 | F44: =VLOOKUP(A44,'Retorno dividendos 2016-2021'!A:I,9,0) -> 0.0634547622 | G44: 189111.1019
A45: KNSC11 | B45: KINEA SECURITIES FII | C45: Recebíveis | D45: =VLOOKUP(A45,'Retorno dividendos 2016-2021'!A:I,8,0) -> 0.0383 | E45: 313315.9269 | F45: =VLOOKUP(A45,'Retorno dividendos 2016-2021'!A:I,9,0) -> 0.0383 | G45: 313315.9269
A46: LVBI11 | B46: VBI LOGISTICO FII | C46: Logística | D46: =VLOOKUP(A46,'Retorno dividendos 2016-2021'!A:I,8,0) -> 0.06063824589 | E46: 197894.9065 | F46: =VLOOKUP(A46,'Retorno dividendos 2016-2021'!A:I,9,0) -> 0.05979733062 | G46: 200677.8543
A47: MALL11 | B47: MALLS BRASIL PLURAL FII | C47: Shoppings | D47: =VLOOKUP(A47,'Retorno dividendos 2016-2021'!A:I,8,0) -> 0.05387840671 | E47: 222723.7354 | F47: =VLOOKUP(A47,'Retorno dividendos 2016-2021'!A:I,9,0) -> 0.06301897747 | G47: 190418.8307
A48: MCCI11 | B48: MAUÁ CAPITAL RECEBÍVEIS IMOBILIÁRIOS FII | C48: Recebíveis | D48: =VLOOKUP(A48,'Retorno dividendos 2016-2021'!A:I,8,0) -> 0.07724783224 | E48: 155344.165 | F48: =VLOOKUP(A48,'Retorno dividendos 2016-2021'!A:I,9,0) -> 0.07724783224 | G48: 155344.165
A49: MFII11 | B49: MÉRITO DESENVOLVIMENTO IMOBILIÁRIO I FII | C49: Desenvolvimento | D49: =VLOOKUP(A49,'Retorno dividendos 2016-2021'!A:I,8,0) -> 0.1073400275 | E49: 111794.2698 | F49: =VLOOKUP(A49,'Retorno dividendos 2016-2021'!A:I,9,0) -> 0.1053914056 | G49: 113861.2767
A50: MGFF11 | B50: MOGNO FOF FII | C50: Fundo de Fundos | D50: =VLOOKUP(A50,'Retorno dividendos 2016-2021'!A:I,8,0) -> 0.08678384518 | E50: 138274.583 | F50: =VLOOKUP(A50,'Retorno dividendos 2016-2021'!A:I,9,0) -> 0.08082321196 | G50: 148472.1989
A51: MXRF11 | B51: MAXI RENDA FII | C51: Recebíveis | D51: =VLOOKUP(A51,'Retorno dividendos 2016-2021'!A:I,8,0) -> 0.08406134464 | E51: 142752.8914 | F51: =VLOOKUP(A51,'Retorno dividendos 2016-2021'!A:I,9,0) -> 0.08573871162 | G51: 139960.1157
A52: OUJP11 | B52: OURINVEST JPP FII | C52: Híbrido | D52: =VLOOKUP(A52,'Retorno dividendos 2016-2021'!A:I,8,0) -> 0.07894859634 | E52: 151997.6359 | F52: =VLOOKUP(A52,'Retorno dividendos 2016-2021'!A:I,9,0) -> 0.0838300933 | G52: 143146.6855
A53: OULG11 | B53: OURINVEST LOGÍSTICA FII | C53: Logística | D53: =VLOOKUP(A53,'Retorno dividendos 2016-2021'!A:I,8,0) -> 0.09987921081 | E53: 120145.1223 | F53: =VLOOKUP(A53,'Retorno dividendos 2016-2021'!A:I,9,0) -> 0.09263776417 | G53: 129536.8051
A54: PATC11 | B54: PÁTRIA EDIFÍCIOS CORPORATIVOS FII | C54: Lajes Corporativas | D54: =VLOOKUP(A54,'Retorno dividendos 2016-2021'!A:I,8,0) -> 0.04403953057 | E54: 272482.4685 | F54: =VLOOKUP(A54,'Retorno dividendos 2016-2021'!A:I,9,0) -> 0.04266215949 | G54: 281279.7136
A55: PATL11 | B55: PÁTRIA LOGÍSTICA FII | C55: Logística | D55: =VLOOKUP(A55,'Retorno dividendos 2016-2021'!A:I,8,0) -> 0.0669 | E55: 179372.1973 | F55: =VLOOKUP(A55,'Retorno dividendos 2016-2021'!A:I,9,0) -> 0.0669 | G55: 179372.1973
A56: PLCR11 | B56: PLURAL RECEBÍVEIS IMOBILIÁRIOS FII | C56: Recebíveis | D56: =VLOOKUP(A56,'Retorno dividendos 2016-2021'!A:I,8,0) -> 0.08151882441 | E56: 147205.2632 | F56: =VLOOKUP(A56,'Retorno dividendos 2016-2021'!A:I,9,0) -> 0.08151882441 | G56: 147205.2632
A57: PORD11 | B57: POLO RECEBÍVEIS IMOBILIÁRIOS II FII | C57: Recebíveis | D57: =VLOOKUP(A57,'Retorno dividendos 2016-2021'!A:I,8,0) -> 0.09906384186 | E57: 121134.0059 | F57: =VLOOKUP(A57,'Retorno dividendos 2016-2021'!A:I,9,0) -> 0.1108002399 | G57: 108303.0146
A58: PVBI11 | B58: VBI PRIME PROPERTIES FII | C58: Lajes Corporativas | D58: =VLOOKUP(A58,'Retorno dividendos 2016-2021'!A:I,8,0) -> 0.0525 | E58: 228571.4286 | F58: =VLOOKUP(A58,'Retorno dividendos 2016-2021'!A:I,9,0) -> 0 | G58: 0
A59: QAGR11 | B59: QUASAR AGRO FII | C59: Logística | D59: =VLOOKUP(A59,'Retorno dividendos 2016-2021'!A:I,8,0) -> 0.05105740375 | E59: 235029.5769 | F59: =VLOOKUP(A59,'Retorno dividendos 2016-2021'!A:I,9,0) -> 0.05105740375 | G59: 235029.5769
A60: RBED11 | B60: RIO BRAVO RENDA EDUCACIONAL FII | C60: Educacional | D60: =VLOOKUP(A60,'Retorno dividendos 2016-2021'!A:I,8,0) -> 0.08587877154 | E60: 139731.8544 | F60: =VLOOKUP(A60,'Retorno dividendos 2016-2021'!A:I,9,0) -> 0.08424392309 | G60: 142443.5088
A61: RBFF11 | B61: RIO BRAVO FUNDO DE FUNDOS FII | C61: Fundo de Fundos | D61: =VLOOKUP(A61,'Retorno dividendos 2016-2021'!A:I,8,0) -> 0.09326969047 | E61: 128659.1597 | F61: =VLOOKUP(A61,'Retorno dividendos 2016-2021'!A:I,9,0) -> 0.08884982218 | G61: 135059.3587
A62: RBRD11 | B62: RB CAPITAL RENDA II FII | C62: Híbrido | D62: =VLOOKUP(A62,'Retorno dividendos 2016-2021'!A:I,8,0) -> 0.3162049587 | E62: 37950.069 | F62: =VLOOKUP(A62,'Retorno dividendos 2016-2021'!A:I,9,0) -> 0.1405052036 | G62: 85406.08953
A63: RBRF11 | B63: RBR ALPHA MULTIESTRATÉGIA REAL ESTATE FII | C63: Fundo de Fundos | D63: =VLOOKUP(A63,'Retorno dividendos 2016-2021'!A:I,8,0) -> 0.09365241355 | E63: 128133.3769 | F63: =VLOOKUP(A63,'Retorno dividendos 2016-2021'!A:I,9,0) -> 0.08735244125 | G63: 137374.5236
A64: RBRP11 | B64: RBR PROPERTIES FII | C64: Lajes Corporativas | D64: =VLOOKUP(A64,'Retorno dividendos 2016-2021'!A:I,8,0) -> 0.07358011121 | E64: 163087.5491 | F64: =VLOOKUP(A64,'Retorno dividendos 2016-2021'!A:I,9,0) -> 0.06326358026 | G64: 189682.5938
A65: RBRR11 | B65: RBR RENDIMENTO HIGH GRADE FII | C65: Recebíveis | D65: =VLOOKUP(A65,'Retorno dividendos 2016-2021'!A:I,8,0) -> 0.07199287127 | E65: 166683.17 | F65: =VLOOKUP(A65,'Retorno dividendos 2016-2021'!A:I,9,0) -> 0.07031833137 | G65: 170652.5136
A66: RBVA11 | B66: RIO BRAVO RENDA VAREJO FII | C66: Agências | D66: =VLOOKUP(A66,'Retorno dividendos 2016-2021'!A:I,8,0) -> 0.09295497956 | E66: =IFERROR(12000/D66,0) -> 129094.7516 | F66: =VLOOKUP(A66,'Retorno dividendos 2016-2021'!A:I,9,0) -> 0.0807495983 | G66: =IFERROR(12000/F66,0) -> 148607.5504
A67: RCRB11 | B67: RIO BRAVO RENDA CORPORATIVA FII | C67: Lajes Corporativas | D67: =VLOOKUP(A67,'Retorno dividendos 2016-2021'!A:I,8,0) -> 0.07086330935 | E67: 169340.1015 | F67: =VLOOKUP(A67,'Retorno dividendos 2016-2021'!A:I,9,0) -> 0.06490045341 | G67: 184898.5542
A68: RECR11 | B68: REC RECEBÍVEIS IMOBILIÁRIOS FII | C68: Recebíveis | D68: =VLOOKUP(A68,'Retorno dividendos 2016-2021'!A:I,8,0) -> 0.1266364374 | E68: 94759.45665 | F68: =VLOOKUP(A68,'Retorno dividendos 2016-2021'!A:I,9,0) -> 0.110327098 | G68: 108767.4761
A69: RECT11 | B69: REC RENDA IMOBILIÁRIA FII | C69: Híbrido | D69: =VLOOKUP(A69,'Retorno dividendos 2016-2021'!A:I,8,0) -> 0.1089382216 | E69: 110154.1757 | F69: =VLOOKUP(A69,'Retorno dividendos 2016-2021'!A:I,9,0) -> 0.1025406892 | G69: 117026.7149
A70: RFOF11 | B70: RB CAPITAL I FUNDO DE FUNDOS FII | C70: Fundo de Fundos | D70: =VLOOKUP(A70,'Retorno dividendos 2016-2021'!A:I,8,0) -> 0.07984467904 | E70: 150291.7933 | F70: =VLOOKUP(A70,'Retorno dividendos 2016-2021'!A:I,9,0) -> 0.07984467904 | G70: 150291.7933
A71: RNGO11 | B71: RIO NEGRO FII | C71: Lajes Corporativas | D71: =VLOOKUP(A71,'Retorno dividendos 2016-2021'!A:I,8,0) -> 0.0828210935 | E71: 144890.625 | F71: =VLOOKUP(A71,'Retorno dividendos 2016-2021'!A:I,9,0) -> 0.07858470826 | G71: 152701.464
A72: RVBI11 | B72: VBI REITS FOF FII | C72: Fundo de Fundos | D72: =VLOOKUP(A72,'Retorno dividendos 2016-2021'!A:I,8,0) -> 0.08805970149 | E72: 136271.1864 | F72: =VLOOKUP(A72,'Retorno dividendos 2016-2021'!A:I,9,0) -> 0.08805970149 | G72: 136271.1864
A73: RZTR11 | B73: RIZA TERRAX FII | C73: Agronegócio | D73: =VLOOKUP(A73,'Retorno dividendos 2016-2021'!A:I,8,0) -> 0.0641 | E73: 187207.4883 | F73: =VLOOKUP(A73,'Retorno dividendos 2016-2021'!A:I,9,0) -> 0.0641 | G73: 187207.4883
A74: SADI11 | B74: SANTANDER PAPÉIS IMOBILIÁRIOS CDI FII | C74: Recebíveis | D74: =VLOOKUP(A74,'Retorno dividendos 2016-2021'!A:I,8,0) -> 0.02863529412 | E74: 419063.2703 | F74: =VLOOKUP(A74,'Retorno dividendos 2016-2021'!A:I,9,0) -> 0.02863529412 | G74: 419063.2703
A75: SARE11 | B75: SANTANDER RENDA DE ALUGUÉIS FII | C75: Híbrido | D75: =VLOOKUP(A75,'Retorno dividendos 2016-2021'!A:I,8,0) -> 0.04880847391 | E75: 245858.947 | F75: =VLOOKUP(A75,'Retorno dividendos 2016-2021'!A:I,9,0) -> 0.04880847391 | G75: 245858.947
A76: SDIL11 | B76: SDI RIO BRAVO RENDA LOGÍSTICA FII | C76: Logística | D76: =VLOOKUP(A76,'Retorno dividendos 2016-2021'!A:I,8,0) -> 0.07420752169 | E76: 161708.6749 | F76: =VLOOKUP(A76,'Retorno dividendos 2016-2021'!A:I,9,0) -> 0.07269216133 | G76: 165079.6974
A77: SPTW11 | B77: SP DOWNTOWN FII | C77: Lajes Corporativas | D77: =VLOOKUP(A77,'Retorno dividendos 2016-2021'!A:I,8,0) -> 0.1962630153 | E77: 61142.44185 | F77: =VLOOKUP(A77,'Retorno dividendos 2016-2021'!A:I,9,0) -> 0.1155186926 | G77: 103879.292
A78: TEPP11 | B78: TELLUS PROPERTIES FII | C78: Lajes Corporativas | D78: =VLOOKUP(A78,'Retorno dividendos 2016-2021'!A:I,8,0) -> 0.07410714286 | E78: 161927.7108 | F78: =VLOOKUP(A78,'Retorno dividendos 2016-2021'!A:I,9,0) -> 0.07410714286 | G78: 161927.7108
A79: TGAR11 | B79: TG ATIVO REAL FII | C79: Híbrido | D79: =VLOOKUP(A79,'Retorno dividendos 2016-2021'!A:I,8,0) -> 0.105432163 | E79: 113817.2609 | F79: =VLOOKUP(A79,'Retorno dividendos 2016-2021'!A:I,9,0) -> 0.08790996679 | G79: 136503.2935
A80: TORD11 | B80: TORDESILHAS EI FII | C80: Híbrido | D80: =VLOOKUP(A80,'Retorno dividendos 2016-2021'!A:I,8,0) -> 0.1213774509 | E80: 98865.15091 | F80: =VLOOKUP(A80,'Retorno dividendos 2016-2021'!A:I,9,0) -> 0.1213774509 | G80: 98865.15091
A81: TRXF11 | B81: TRX REAL ESTATE FII | C81: Híbrido | D81: =VLOOKUP(A81,'Retorno dividendos 2016-2021'!A:I,8,0) -> 0.07468159052 | E81: 160682.1697 | F81: =VLOOKUP(A81,'Retorno dividendos 2016-2021'!A:I,9,0) -> 0.07468159052 | G81: 160682.1697
A82: URPR11 | B82: URCA PRIME RENDA FII | C82: Recebíveis | D82: =VLOOKUP(A82,'Retorno dividendos 2016-2021'!A:I,8,0) -> 0.1905 | E82: 62992.12598 | F82: =VLOOKUP(A82,'Retorno dividendos 2016-2021'!A:I,9,0) -> 0.1905 | G82: 62992.12598
A83: VCJR11 | B83: VECTIS JUROS REAL FII | C83: Recebíveis | D83: =VLOOKUP(A83,'Retorno dividendos 2016-2021'!A:I,8,0) -> 0.09238845144 | E83: 129886.3636 | F83: =VLOOKUP(A83,'Retorno dividendos 2016-2021'!A:I,9,0) -> 0.09238845144 | G83: 129886.3636
A84: VGIP11 | B84: VALORA CRI ÍNDICE DE PREÇO FII | C84: Recebíveis | D84: =VLOOKUP(A84,'Retorno dividendos 2016-2021'!A:I,8,0) -> 0.1148105231 | E84: 104520.0359 | F84: =VLOOKUP(A84,'Retorno dividendos 2016-2021'!A:I,9,0) -> 0.1148105231 | G84: 104520.0359
A85: VGIR11 | B85: VALORA RE III FII | C85: Recebíveis | D85: =VLOOKUP(A85,'Retorno dividendos 2016-2021'!A:I,8,0) -> 0.06133806137 | E85: 195637.0927 | F85: =VLOOKUP(A85,'Retorno dividendos 2016-2021'!A:I,9,0) -> 0.07375634353 | G85: 162697.8701
A86: VILG11 | B86: VINCI LOGÍSTICA FII | C86: Logística | D86: =VLOOKUP(A86,'Retorno dividendos 2016-2021'!A:I,8,0) -> 0.06015114806 | E86: 199497.4392 | F86: =VLOOKUP(A86,'Retorno dividendos 2016-2021'!A:I,9,0) -> 0.05968947427 | G86: 201040.4707
A87: VINO11 | B87: VINCI OFFICES FII | C87: Lajes Corporativas | D87: =VLOOKUP(A87,'Retorno dividendos 2016-2021'!A:I,8,0) -> 0.08142881143 | E87: 147367.9867 | F87: =VLOOKUP(A87,'Retorno dividendos 2016-2021'!A:I,9,0) -> 0.08142881143 | G87: 147367.9867
A88: VISC11 | B88: VINCI SHOPPING CENTERS FII | C88: Shoppings | D88: =VLOOKUP(A88,'Retorno dividendos 2016-2021'!A:I,8,0) -> 0.03761682243 | E88: 319006.2112 | F88: =VLOOKUP(A88,'Retorno dividendos 2016-2021'!A:I,9,0) -> 0.05742479681 | G88: 208968.9588
A89: VRTA11 | B89: FATOR VERITA FII | C89: Recebíveis | D89: =VLOOKUP(A89,'Retorno dividendos 2016-2021'!A:I,8,0) -> 0.08841240876 | E89: 135727.5542 | F89: =VLOOKUP(A89,'Retorno dividendos 2016-2021'!A:I,9,0) -> 0.09131946549 | G89: 131406.8138
A90: VTLT11 | B90: VOTORANTIM LOGÍSTICA FII | C90: Logística | D90: =VLOOKUP(A90,'Retorno dividendos 2016-2021'!A:I,8,0) -> 0.07846071878 | E90: 152942.7743 | F90: =VLOOKUP(A90,'Retorno dividendos 2016-2021'!A:I,9,0) -> 0.08027916044 | G90: 149478.3943
A91: XPCI11 | B91: XP CRÉDITO IMOBILIÁRIO FII | C91: Recebíveis | D91: =VLOOKUP(A91,'Retorno dividendos 2016-2021'!A:I,8,0) -> 0.08706467662 | E91: 137828.5714 | F91: =VLOOKUP(A91,'Retorno dividendos 2016-2021'!A:I,9,0) -> 0.08706467662 | G91: 137828.5714
A92: XPCM11 | B92: XP CORPORATE MACAÉ FII | C92: Lajes Corporativas | D92: =VLOOKUP(A92,'Retorno dividendos 2016-2021'!A:I,8,0) -> 0.2133651551 | E92: 56241.61075 | F92: =VLOOKUP(A92,'Retorno dividendos 2016-2021'!A:I,9,0) -> 0.1351741091 | G92: 88774.39682
A93: XPIN11 | B93: XP INDUSTRIAL FII | C93: Logística | D93: =VLOOKUP(A93,'Retorno dividendos 2016-2021'!A:I,8,0) -> 0.07404954802 | E93: 162053.6562 | F93: =VLOOKUP(A93,'Retorno dividendos 2016-2021'!A:I,9,0) -> 0.06676402155 | G93: 179737.5251
A94: XPLG11 | B94: XP LOG FII | C94: Logística | D94: =VLOOKUP(A94,'Retorno dividendos 2016-2021'!A:I,8,0) -> 0.06621130417 | E94: 181237.9344 | F94: =VLOOKUP(A94,'Retorno dividendos 2016-2021'!A:I,9,0) -> 0.06257424622 | G94: 191772.1862
A95: XPML11 | B95: XP MALLS FII | C95: Shoppings | D95: =VLOOKUP(A95,'Retorno dividendos 2016-2021'!A:I,8,0) -> 0.03762942662 | E95: =IFERROR(12000/D95,0) -> 318899.3582 | F95: =VLOOKUP(A95,'Retorno dividendos 2016-2021'!A:I,9,0) -> 0.04758150349 | G95: 252198.8403
A96: XPPR11 | B96: XP PROPERTIES FII | C96: Híbrido | D96: =VLOOKUP(A96,'Retorno dividendos 2016-2021'!A:I,8,0) -> 0.1110455503 | E96: 108063.7627 | F96: =VLOOKUP(A96,'Retorno dividendos 2016-2021'!A:I,9,0) -> 0.1110455503 | G96: 108063.7627
A97: XPSF11 | B97: XP SELECTION FUNDO DE FUNDOS FII | C97: Fundo de Fundos | D97: =VLOOKUP(A97,'Retorno dividendos 2016-2021'!A:I,8,0) -> 0.0954849932 | E97: 125674.1986 | F97: =VLOOKUP(A97,'Retorno dividendos 2016-2021'!A:I,9,0) -> 0.0954849932 | G97: 125674.1986

Sheet Monte uma carteira de FIIs
C1: PREENCHA OS DADOS ABAIXO
C2: 1) Seu nome | E2: Seu Nome
C3: 2) Que valor você gostaria de investir inicialmente em uma carteira de FIIs? | E3: 15000
C4: 3) Quanto você gostaria de receber de dividendos por mês com sua carteira de FIIs? | E4: 1000
C6: Código do fundo | D6: Nome do Fundo | E6: Setor | F6: Peso do fundo na carteira | G6: Valor (investimento inicial)
D7: =IFERROR(VLOOKUP($C7,'Retorno dividendos 2016-2021'!$A:$C,2,0),"") ->  | E7: =IFERROR(VLOOKUP($C7,'Retorno dividendos 2016-2021'!$A:$C,3,0),"") ->  | F7: 1 | G7: =IF(F7="","",$E$3*F7) -> 15000
D8: =IFERROR(VLOOKUP($C8,'Retorno dividendos 2016-2021'!$A:$C,2,0),"") ->  | E8: =IFERROR(VLOOKUP($C8,'Retorno dividendos 2016-2021'!$A:$C,3,0),"") ->  | G8: =IF(F8="","",$E$3*F8) -> 
D9: =IFERROR(VLOOKUP($C9,'Retorno dividendos 2016-2021'!$A:$C,2,0),"") ->  | E9: =IFERROR(VLOOKUP($C9,'Retorno dividendos 2016-2021'!$A:$C,3,0),"") -> 
D10: =IFERROR(VLOOKUP($C10,'Retorno dividendos 2016-2021'!$A:$C,2,0),"") ->  | E10: =IFERROR(VLOOKUP($C10,'Retorno dividendos 2016-2021'!$A:$C,3,0),"") -> 
D11: =IFERROR(VLOOKUP($C11,'Retorno dividendos 2016-2021'!$A:$C,2,0),"") ->  | E11: =IFERROR(VLOOKUP($C11,'Retorno dividendos 2016-2021'!$A:$C,3,0),"") -> 
D12: =IFERROR(VLOOKUP($C12,'Retorno dividendos 2016-2021'!$A:$C,2,0),"") ->  | E12: =IFERROR(VLOOKUP($C12,'Retorno dividendos 2016-2021'!$A:$C,3,0),"") -> 
D13: =IFERROR(VLOOKUP($C13,'Retorno dividendos 2016-2021'!$A:$C,2,0),"") ->  | E13: =IFERROR(VLOOKUP($C13,'Retorno dividendos 2016-2021'!$A:$C,3,0),"") -> 
D14: =IFERROR(VLOOKUP($C14,'Retorno dividendos 2016-2021'!$A:$C,2,0),"") ->  | E14: =IFERROR(VLOOKUP($C14,'Retorno dividendos 2016-2021'!$A:$C,3,0),"") -> 
D15: =IFERROR(VLOOKUP($C15,'Retorno dividendos 2016-2021'!$A:$C,2,0),"") ->  | E15: =IFERROR(VLOOKUP($C15,'Retorno dividendos 2016-2021'!$A:$C,3,0),"") -> 
D16: =IFERROR(VLOOKUP($C16,'Retorno dividendos 2016-2021'!$A:$C,2,0),"") ->  | E16: =IFERROR(VLOOKUP($C16,'Retorno dividendos 2016-2021'!$A:$C,3,0),"") -> 
D17: =IFERROR(VLOOKUP($C17,'Retorno dividendos 2016-2021'!$A:$C,2,0),"") ->  | E17: =IFERROR(VLOOKUP($C17,'Retorno dividendos 2016-2021'!$A:$C,3,0),"") ->  | G17: =IF(F17="","",$E$3*F17) -> 
D18: =IFERROR(VLOOKUP($C18,'Retorno dividendos 2016-2021'!$A:$C,2,0),"") ->  | E18: =IFERROR(VLOOKUP($C18,'Retorno dividendos 2016-2021'!$A:$C,3,0),"") ->  | G18: =IF(F18="","",$E$3*F18) -> 
D19: =IFERROR(VLOOKUP($C19,'Retorno dividendos 2016-2021'!$A:$C,2,0),"") ->  | E19: =IFERROR(VLOOKUP($C19,'Retorno dividendos 2016-2021'!$A:$C,3,0),"") -> 
D20: =IFERROR(VLOOKUP($C20,'Retorno dividendos 2016-2021'!$A:$C,2,0),"") ->  | E20: =IFERROR(VLOOKUP($C20,'Retorno dividendos 2016-2021'!$A:$C,3,0),"") -> 
D21: =IFERROR(VLOOKUP($C21,'Retorno dividendos 2016-2021'!$A:$C,2,0),"") ->  | E21: =IFERROR(VLOOKUP($C21,'Retorno dividendos 2016-2021'!$A:$C,3,0),"") -> 
C22: TOTAL | F22: =SUM(F7:F21) -> 1 | G22: 15000
D23: =IFERROR(VLOOKUP($C23,'Retorno dividendos 2016-2021'!$A:$C,2,0),"") ->  | E23: =IFERROR(VLOOKUP($C23,'Retorno dividendos 2016-2021'!$A:$C,3,0),"") -> 
D24: =IFERROR(VLOOKUP($C24,'Retorno dividendos 2016-2021'!$A:$C,2,0),"") ->  | E24: =IFERROR(VLOOKUP($C24,'Retorno dividendos 2016-2021'!$A:$C,3,0),"") -> 
D25: =IFERROR(VLOOKUP($C25,'Retorno dividendos 2016-2021'!$A:$C,2,0),"") ->  | E25: =IFERROR(VLOOKUP($C25,'Retorno dividendos 2016-2021'!$A:$C,3,0),"") -> 
D26: =IFERROR(VLOOKUP($C26,'Retorno dividendos 2016-2021'!$A:$C,2,0),"") ->  | E26: =IFERROR(VLOOKUP($C26,'Retorno dividendos 2016-2021'!$A:$C,3,0),"") -> 
D27: =IFERROR(VLOOKUP($C27,'Retorno dividendos 2016-2021'!$A:$C,2,0),"") ->  | E27: =IFERROR(VLOOKUP($C27,'Retorno dividendos 2016-2021'!$A:$C,3,0),"") -> 
D28: =IFERROR(VLOOKUP($C28,'Retorno dividendos 2016-2021'!$A:$C,2,0),"") ->  | E28: =IFERROR(VLOOKUP($C28,'Retorno dividendos 2016-2021'!$A:$C,3,0),"") -> 
D29: =IFERROR(VLOOKUP($C29,'Retorno dividendos 2016-2021'!$A:$C,2,0),"") ->  | E29: =IFERROR(VLOOKUP($C29,'Retorno dividendos 2016-2021'!$A:$C,3,0),"") -> 
D30: =IFERROR(VLOOKUP($C30,'Retorno dividendos 2016-2021'!$A:$C,2,0),"") ->  | E30: =IFERROR(VLOOKUP($C30,'Retorno dividendos 2016-2021'!$A:$C,3,0),"") -> 
D31: =IFERROR(VLOOKUP($C31,'Retorno dividendos 2016-2021'!$A:$C,2,0),"") ->  | E31: =IFERROR(VLOOKUP($C31,'Retorno dividendos 2016-2021'!$A:$C,3,0),"") -> 
D32: =IFERROR(VLOOKUP($C32,'Retorno dividendos 2016-2021'!$A:$C,2,0),"") ->  | E32: =IFERROR(VLOOKUP($C32,'Retorno dividendos 2016-2021'!$A:$C,3,0),"") -> 
D33: =IFERROR(VLOOKUP($C33,'Retorno dividendos 2016-2021'!$A:$C,2,0),"") ->  | E33: =IFERROR(VLOOKUP($C33,'Retorno dividendos 2016-2021'!$A:$C,3,0),"") -> 
D34: =IFERROR(VLOOKUP($C34,'Retorno dividendos 2016-2021'!$A:$C,2,0),"") ->  | E34: =IFERROR(VLOOKUP($C34,'Retorno dividendos 2016-2021'!$A:$C,3,0),"") -> 
D35: =IFERROR(VLOOKUP($C35,'Retorno dividendos 2016-2021'!$A:$C,2,0),"") ->  | E35: =IFERROR(VLOOKUP($C35,'Retorno dividendos 2016-2021'!$A:$C,3,0),"") -> 
D36: =IFERROR(VLOOKUP($C36,'Retorno dividendos 2016-2021'!$A:$C,2,0),"") ->  | E36: =IFERROR(VLOOKUP($C36,'Retorno dividendos 2016-2021'!$A:$C,3,0),"") -> 
D37: =IFERROR(VLOOKUP($C37,'Retorno dividendos 2016-2021'!$A:$C,2,0),"") ->  | E37: =IFERROR(VLOOKUP($C37,'Retorno dividendos 2016-2021'!$A:$C,3,0),"") -> 
D38: =IFERROR(VLOOKUP($C38,'Retorno dividendos 2016-2021'!$A:$C,2,0),"") ->  | E38: =IFERROR(VLOOKUP($C38,'Retorno dividendos 2016-2021'!$A:$C,3,0),"") -> 
D39: =IFERROR(VLOOKUP($C39,'Retorno dividendos 2016-2021'!$A:$C,2,0),"") ->  | E39: =IFERROR(VLOOKUP($C39,'Retorno dividendos 2016-2021'!$A:$C,3,0),"") -> 
D40: =IFERROR(VLOOKUP($C40,'Retorno dividendos 2016-2021'!$A:$C,2,0),"") ->  | E40: =IFERROR(VLOOKUP($C40,'Retorno dividendos 2016-2021'!$A:$C,3,0),"") -> 
D41: =IFERROR(VLOOKUP($C41,'Retorno dividendos 2016-2021'!$A:$C,2,0),"") ->  | E41: =IFERROR(VLOOKUP($C41,'Retorno dividendos 2016-2021'!$A:$C,3,0),"") -> 
D42: =IFERROR(VLOOKUP($C42,'Retorno dividendos 2016-2021'!$A:$C,2,0),"") ->  | E42: =IFERROR(VLOOKUP($C42,'Retorno dividendos 2016-2021'!$A:$C,3,0),"") -> 
D43: =IFERROR(VLOOKUP($C43,'Retorno dividendos 2016-2021'!$A:$C,2,0),"") ->  | E43: =IFERROR(VLOOKUP($C43,'Retorno dividendos 2016-2021'!$A:$C,3,0),"") -> 
D44: =IFERROR(VLOOKUP($C44,'Retorno dividendos 2016-2021'!$A:$C,2,0),"") ->  | E44: =IFERROR(VLOOKUP($C44,'Retorno dividendos 2016-2021'!$A:$C,3,0),"") -> 
D45: =IFERROR(VLOOKUP($C45,'Retorno dividendos 2016-2021'!$A:$C,2,0),"") ->  | E45: =IFERROR(VLOOKUP($C45,'Retorno dividendos 2016-2021'!$A:$C,3,0),"") -> 
D46: =IFERROR(VLOOKUP($C46,'Retorno dividendos 2016-2021'!$A:$C,2,0),"") ->  | E46: =IFERROR(VLOOKUP($C46,'Retorno dividendos 2016-2021'!$A:$C,3,0),"") -> 
D47: =IFERROR(VLOOKUP($C47,'Retorno dividendos 2016-2021'!$A:$C,2,0),"") ->  | E47: =IFERROR(VLOOKUP($C47,'Retorno dividendos 2016-2021'!$A:$C,3,0),"") -> 
D48: =IFERROR(VLOOKUP($C48,'Retorno dividendos 2016-2021'!$A:$C,2,0),"") ->  | E48: =IFERROR(VLOOKUP($C48,'Retorno dividendos 2016-2021'!$A:$C,3,0),"") -> 
D49: =IFERROR(VLOOKUP($C49,'Retorno dividendos 2016-2021'!$A:$C,2,0),"") ->  | E49: =IFERROR(VLOOKUP($C49,'Retorno dividendos 2016-2021'!$A:$C,3,0),"") -> 
D50: =IFERROR(VLOOKUP($C50,'Retorno dividendos 2016-2021'!$A:$C,2,0),"") ->  | E50: =IFERROR(VLOOKUP($C50,'Retorno dividendos 2016-2021'!$A:$C,3,0),"") -> 
D51: =IFERROR(VLOOKUP($C51,'Retorno dividendos 2016-2021'!$A:$C,2,0),"") ->  | E51: =IFERROR(VLOOKUP($C51,'Retorno dividendos 2016-2021'!$A:$C,3,0),"") -> 
D52: =IFERROR(VLOOKUP($C52,'Retorno dividendos 2016-2021'!$A:$C,2,0),"") ->  | E52: =IFERROR(VLOOKUP($C52,'Retorno dividendos 2016-2021'!$A:$C,3,0),"") -> 
D53: =IFERROR(VLOOKUP($C53,'Retorno dividendos 2016-2021'!$A:$C,2,0),"") ->  | E53: =IFERROR(VLOOKUP($C53,'Retorno dividendos 2016-2021'!$A:$C,3,0),"") -> 
D54: =IFERROR(VLOOKUP($C54,'Retorno dividendos 2016-2021'!$A:$C,2,0),"") ->  | E54: =IFERROR(VLOOKUP($C54,'Retorno dividendos 2016-2021'!$A:$C,3,0),"") -> 
D55: =IFERROR(VLOOKUP($C55,'Retorno dividendos 2016-2021'!$A:$C,2,0),"") ->  | E55: =IFERROR(VLOOKUP($C55,'Retorno dividendos 2016-2021'!$A:$C,3,0),"") -> 
D56: =IFERROR(VLOOKUP($C56,'Retorno dividendos 2016-2021'!$A:$C,2,0),"") ->  | E56: =IFERROR(VLOOKUP($C56,'Retorno dividendos 2016-2021'!$A:$C,3,0),"") -> 
D57: =IFERROR(VLOOKUP($C57,'Retorno dividendos 2016-2021'!$A:$C,2,0),"") ->  | E57: =IFERROR(VLOOKUP($C57,'Retorno dividendos 2016-2021'!$A:$C,3,0),"") -> 
D58: =IFERROR(VLOOKUP($C58,'Retorno dividendos 2016-2021'!$A:$C,2,0),"") ->  | E58: =IFERROR(VLOOKUP($C58,'Retorno dividendos 2016-2021'!$A:$C,3,0),"") -> 
D59: =IFERROR(VLOOKUP($C59,'Retorno dividendos 2016-2021'!$A:$C,2,0),"") ->  | E59: =IFERROR(VLOOKUP($C59,'Retorno dividendos 2016-2021'!$A:$C,3,0),"") -> 
D60: =IFERROR(VLOOKUP($C60,'Retorno dividendos 2016-2021'!$A:$C,2,0),"") ->  | E60: =IFERROR(VLOOKUP($C60,'Retorno dividendos 2016-2021'!$A:$C,3,0),"") -> 
D61: =IFERROR(VLOOKUP($C61,'Retorno dividendos 2016-2021'!$A:$C,2,0),"") ->  | E61: =IFERROR(VLOOKUP($C61,'Retorno dividendos 2016-2021'!$A:$C,3,0),"") -> 
D62: =IFERROR(VLOOKUP($C62,'Retorno dividendos 2016-2021'!$A:$C,2,0),"") ->  | E62: =IFERROR(VLOOKUP($C62,'Retorno dividendos 2016-2021'!$A:$C,3,0),"") -> 
D63: =IFERROR(VLOOKUP($C63,'Retorno dividendos 2016-2021'!$A:$C,2,0),"") ->  | E63: =IFERROR(VLOOKUP($C63,'Retorno dividendos 2016-2021'!$A:$C,3,0),"") -> 
D64: =IFERROR(VLOOKUP($C64,'Retorno dividendos 2016-2021'!$A:$C,2,0),"") ->  | E64: =IFERROR(VLOOKUP($C64,'Retorno dividendos 2016-2021'!$A:$C,3,0),"") -> 
D65: =IFERROR(VLOOKUP($C65,'Retorno dividendos 2016-2021'!$A:$C,2,0),"") ->  | E65: =IFERROR(VLOOKUP($C65,'Retorno dividendos 2016-2021'!$A:$C,3,0),"") -> 
D66: =IFERROR(VLOOKUP($C66,'Retorno dividendos 2016-2021'!$A:$C,2,0),"") ->  | E66: =IFERROR(VLOOKUP($C66,'Retorno dividendos 2016-2021'!$A:$C,3,0),"") -> 
D67: =IFERROR(VLOOKUP($C67,'Retorno dividendos 2016-2021'!$A:$C,2,0),"") ->  | E67: =IFERROR(VLOOKUP($C67,'Retorno dividendos 2016-2021'!$A:$C,3,0),"") -> 
D68: =IFERROR(VLOOKUP($C68,'Retorno dividendos 2016-2021'!$A:$C,2,0),"") ->  | E68: =IFERROR(VLOOKUP($C68,'Retorno dividendos 2016-2021'!$A:$C,3,0),"") -> 
D69: =IFERROR(VLOOKUP($C69,'Retorno dividendos 2016-2021'!$A:$C,2,0),"") ->  | E69: =IFERROR(VLOOKUP($C69,'Retorno dividendos 2016-2021'!$A:$C,3,0),"") -> 
D70: =IFERROR(VLOOKUP($C70,'Retorno dividendos 2016-2021'!$A:$C,2,0),"") ->  | E70: =IFERROR(VLOOKUP($C70,'Retorno dividendos 2016-2021'!$A:$C,3,0),"") -> 
D71: =IFERROR(VLOOKUP($C71,'Retorno dividendos 2016-2021'!$A:$C,2,0),"") ->  | E71: =IFERROR(VLOOKUP($C71,'Retorno dividendos 2016-2021'!$A:$C,3,0),"") -> 
D72: =IFERROR(VLOOKUP($C72,'Retorno dividendos 2016-2021'!$A:$C,2,0),"") ->  | E72: =IFERROR(VLOOKUP($C72,'Retorno dividendos 2016-2021'!$A:$C,3,0),"") -> 
D73: =IFERROR(VLOOKUP($C73,'Retorno dividendos 2016-2021'!$A:$C,2,0),"") ->  | E73: =IFERROR(VLOOKUP($C73,'Retorno dividendos 2016-2021'!$A:$C,3,0),"") -> 
D74: =IFERROR(VLOOKUP($C74,'Retorno dividendos 2016-2021'!$A:$C,2,0),"") ->  | E74: =IFERROR(VLOOKUP($C74,'Retorno dividendos 2016-2021'!$A:$C,3,0),"") -> 
D75: =IFERROR(VLOOKUP($C75,'Retorno dividendos 2016-2021'!$A:$C,2,0),"") ->  | E75: =IFERROR(VLOOKUP($C75,'Retorno dividendos 2016-2021'!$A:$C,3,0),"") -> 
D76: =IFERROR(VLOOKUP($C76,'Retorno dividendos 2016-2021'!$A:$C,2,0),"") ->  | E76: =IFERROR(VLOOKUP($C76,'Retorno dividendos 2016-2021'!$A:$C,3,0),"") -> 
D77: =IFERROR(VLOOKUP($C77,'Retorno dividendos 2016-2021'!$A:$C,2,0),"") ->  | E77: =IFERROR(VLOOKUP($C77,'Retorno dividendos 2016-2021'!$A:$C,3,0),"") -> 
D78: =IFERROR(VLOOKUP($C78,'Retorno dividendos 2016-2021'!$A:$C,2,0),"") ->  | E78: =IFERROR(VLOOKUP($C78,'Retorno dividendos 2016-2021'!$A:$C,3,0),"") -> 
D79: =IFERROR(VLOOKUP($C79,'Retorno dividendos 2016-2021'!$A:$C,2,0),"") ->  | E79: =IFERROR(VLOOKUP($C79,'Retorno dividendos 2016-2021'!$A:$C,3,0),"") -> 
D80: =IFERROR(VLOOKUP($C80,'Retorno dividendos 2016-2021'!$A:$C,2,0),"") ->  | E80: =IFERROR(VLOOKUP($C80,'Retorno dividendos 2016-2021'!$A:$C,3,0),"") -> 
D81: =IFERROR(VLOOKUP($C81,'Retorno dividendos 2016-2021'!$A:$C,2,0),"") ->  | E81: =IFERROR(VLOOKUP($C81,'Retorno dividendos 2016-2021'!$A:$C,3,0),"") ->  | G81: =IF(F81="","",$E$3*F81) -> 
D82: =IFERROR(VLOOKUP($C82,'Retorno dividendos 2016-2021'!$A:$C,2,0),"") ->  | E82: =IFERROR(VLOOKUP($C82,'Retorno dividendos 2016-2021'!$A:$C,3,0),"") -> 
D83: =IFERROR(VLOOKUP($C83,'Retorno dividendos 2016-2021'!$A:$C,2,0),"") ->  | E83: =IFERROR(VLOOKUP($C83,'Retorno dividendos 2016-2021'!$A:$C,3,0),"") -> 
D84: =IFERROR(VLOOKUP($C84,'Retorno dividendos 2016-2021'!$A:$C,2,0),"") ->  | E84: =IFERROR(VLOOKUP($C84,'Retorno dividendos 2016-2021'!$A:$C,3,0),"") -> 
D85: =IFERROR(VLOOKUP($C85,'Retorno dividendos 2016-2021'!$A:$C,2,0),"") ->  | E85: =IFERROR(VLOOKUP($C85,'Retorno dividendos 2016-2021'!$A:$C,3,0),"") -> 
D86: =IFERROR(VLOOKUP($C86,'Retorno dividendos 2016-2021'!$A:$C,2,0),"") ->  | E86: =IFERROR(VLOOKUP($C86,'Retorno dividendos 2016-2021'!$A:$C,3,0),"") -> 
D87: =IFERROR(VLOOKUP($C87,'Retorno dividendos 2016-2021'!$A:$C,2,0),"") ->  | E87: =IFERROR(VLOOKUP($C87,'Retorno dividendos 2016-2021'!$A:$C,3,0),"") -> 
D88: =IFERROR(VLOOKUP($C88,'Retorno dividendos 2016-2021'!$A:$C,2,0),"") ->  | E88: =IFERROR(VLOOKUP($C88,'Retorno dividendos 2016-2021'!$A:$C,3,0),"") -> 
D89: =IFERROR(VLOOKUP($C89,'Retorno dividendos 2016-2021'!$A:$C,2,0),"") ->  | E89: =IFERROR(VLOOKUP($C89,'Retorno dividendos 2016-2021'!$A:$C,3,0),"") -> 
D90: =IFERROR(VLOOKUP($C90,'Retorno dividendos 2016-2021'!$A:$C,2,0),"") ->  | E90: =IFERROR(VLOOKUP($C90,'Retorno dividendos 2016-2021'!$A:$C,3,0),"") -> 
D91: =IFERROR(VLOOKUP($C91,'Retorno dividendos 2016-2021'!$A:$C,2,0),"") ->  | E91: =IFERROR(VLOOKUP($C91,'Retorno dividendos 2016-2021'!$A:$C,3,0),"") -> 
D92: =IFERROR(VLOOKUP($C92,'Retorno dividendos 2016-2021'!$A:$C,2,0),"") ->  | E92: =IFERROR(VLOOKUP($C92,'Retorno dividendos 2016-2021'!$A:$C,3,0),"") -> 
D93: =IFERROR(VLOOKUP($C93,'Retorno dividendos 2016-2021'!$A:$C,2,0),"") ->  | E93: =IFERROR(VLOOKUP($C93,'Retorno dividendos 2016-2021'!$A:$C,3,0),"") -> 
D94: =IFERROR(VLOOKUP($C94,'Retorno dividendos 2016-2021'!$A:$C,2,0),"") ->  | E94: =IFERROR(VLOOKUP($C94,'Retorno dividendos 2016-2021'!$A:$C,3,0),"") -> 
D95: =IFERROR(VLOOKUP($C95,'Retorno dividendos 2016-2021'!$A:$C,2,0),"") ->  | E95: =IFERROR(VLOOKUP($C95,'Retorno dividendos 2016-2021'!$A:$C,3,0),"") -> 
D96: =IFERROR(VLOOKUP($C96,'Retorno dividendos 2016-2021'!$A:$C,2,0),"") ->  | E96: =IFERROR(VLOOKUP($C96,'Retorno dividendos 2016-2021'!$A:$C,3,0),"") -> 
D97: =IFERROR(VLOOKUP($C97,'Retorno dividendos 2016-2021'!$A:$C,2,0),"") ->  | E97: =IFERROR(VLOOKUP($C97,'Retorno dividendos 2016-2021'!$A:$C,3,0),"") -> 
D98: =IFERROR(VLOOKUP($C98,'Retorno dividendos 2016-2021'!$A:$C,2,0),"") ->  | E98: =IFERROR(VLOOKUP($C98,'Retorno dividendos 2016-2021'!$A:$C,3,0),"") -> 
D99: =IFERROR(VLOOKUP($C99,'Retorno dividendos 2016-2021'!$A:$C,2,0),"") ->  | E99: =IFERROR(VLOOKUP($C99,'Retorno dividendos 2016-2021'!$A:$C,3,0),"") -> 
D100: =IFERROR(VLOOKUP($C100,'Retorno dividendos 2016-2021'!$A:$C,2,0),"") ->  | E100: =IFERROR(VLOOKUP($C100,'Retorno dividendos 2016-2021'!$A:$C,3,0),"") -> 
D101: =IFERROR(VLOOKUP($C101,'Retorno dividendos 2016-2021'!$A:$C,2,0),"") ->  | E101: =IFERROR(VLOOKUP($C101,'Retorno dividendos 2016-2021'!$A:$C,3,0),"") -> 
D102: =IFERROR(VLOOKUP($C102,'Retorno dividendos 2016-2021'!$A:$C,2,0),"") ->  | E102: =IFERROR(VLOOKUP($C102,'Retorno dividendos 2016-2021'!$A:$C,3,0),"") -> 
D103: =IFERROR(VLOOKUP($C103,'Retorno dividendos 2016-2021'!$A:$C,2,0),"") ->  | E103: =IFERROR(VLOOKUP($C103,'Retorno dividendos 2016-2021'!$A:$C,3,0),"") -> 
D104: =IFERROR(VLOOKUP($C104,'Retorno dividendos 2016-2021'!$A:$C,2,0),"") ->  | E104: =IFERROR(VLOOKUP($C104,'Retorno dividendos 2016-2021'!$A:$C,3,0),"") -> 
D105: =IFERROR(VLOOKUP($C105,'Retorno dividendos 2016-2021'!$A:$C,2,0),"") ->  | E105: =IFERROR(VLOOKUP($C105,'Retorno dividendos 2016-2021'!$A:$C,3,0),"") -> 
D106: =IFERROR(VLOOKUP($C106,'Retorno dividendos 2016-2021'!$A:$C,2,0),"") ->  | E106: =IFERROR(VLOOKUP($C106,'Retorno dividendos 2016-2021'!$A:$C,3,0),"") -> 
D107: =IFERROR(VLOOKUP($C107,'Retorno dividendos 2016-2021'!$A:$C,2,0),"") ->  | E107: =IFERROR(VLOOKUP($C107,'Retorno dividendos 2016-2021'!$A:$C,3,0),"") -> 
D108: =IFERROR(VLOOKUP($C108,'Retorno dividendos 2016-2021'!$A:$C,2,0),"") ->  | E108: =IFERROR(VLOOKUP($C108,'Retorno dividendos 2016-2021'!$A:$C,3,0),"") -> 
D109: =IFERROR(VLOOKUP($C109,'Retorno dividendos 2016-2021'!$A:$C,2,0),"") ->  | E109: =IFERROR(VLOOKUP($C109,'Retorno dividendos 2016-2021'!$A:$C,3,0),"") -> 
D110: =IFERROR(VLOOKUP($C110,'Retorno dividendos 2016-2021'!$A:$C,2,0),"") ->  | E110: =IFERROR(VLOOKUP($C110,'Retorno dividendos 2016-2021'!$A:$C,3,0),"") -> 
D111: =IFERROR(VLOOKUP($C111,'Retorno dividendos 2016-2021'!$A:$C,2,0),"") ->  | E111: =IFERROR(VLOOKUP($C111,'Retorno dividendos 2016-2021'!$A:$C,3,0),"") -> 
D112: =IFERROR(VLOOKUP($C112,'Retorno dividendos 2016-2021'!$A:$C,2,0),"") ->  | E112: =IFERROR(VLOOKUP($C112,'Retorno dividendos 2016-2021'!$A:$C,3,0),"") -> 
D113: =IFERROR(VLOOKUP($C113,'Retorno dividendos 2016-2021'!$A:$C,2,0),"") ->  | E113: =IFERROR(VLOOKUP($C113,'Retorno dividendos 2016-2021'!$A:$C,3,0),"") -> 
D114: =IFERROR(VLOOKUP($C114,'Retorno dividendos 2016-2021'!$A:$C,2,0),"") ->  | E114: =IFERROR(VLOOKUP($C114,'Retorno dividendos 2016-2021'!$A:$C,3,0),"") -> 
D115: =IFERROR(VLOOKUP($C115,'Retorno dividendos 2016-2021'!$A:$C,2,0),"") ->  | E115: =IFERROR(VLOOKUP($C115,'Retorno dividendos 2016-2021'!$A:$C,3,0),"") -> 
D116: =IFERROR(VLOOKUP($C116,'Retorno dividendos 2016-2021'!$A:$C,2,0),"") ->  | E116: =IFERROR(VLOOKUP($C116,'Retorno dividendos 2016-2021'!$A:$C,3,0),"") -> 
D117: =IFERROR(VLOOKUP($C117,'Retorno dividendos 2016-2021'!$A:$C,2,0),"") ->  | E117: =IFERROR(VLOOKUP($C117,'Retorno dividendos 2016-2021'!$A:$C,3,0),"") -> 
D118: =IFERROR(VLOOKUP($C118,'Retorno dividendos 2016-2021'!$A:$C,2,0),"") ->  | E118: =IFERROR(VLOOKUP($C118,'Retorno dividendos 2016-2021'!$A:$C,3,0),"") -> 
D119: =IFERROR(VLOOKUP($C119,'Retorno dividendos 2016-2021'!$A:$C,2,0),"") ->  | E119: =IFERROR(VLOOKUP($C119,'Retorno dividendos 2016-2021'!$A:$C,3,0),"") -> 
D120: =IFERROR(VLOOKUP($C120,'Retorno dividendos 2016-2021'!$A:$C,2,0),"") ->  | E120: =IFERROR(VLOOKUP($C120,'Retorno dividendos 2016-2021'!$A:$C,3,0),"") -> 
D121: =IFERROR(VLOOKUP($C121,'Retorno dividendos 2016-2021'!$A:$C,2,0),"") ->  | E121: =IFERROR(VLOOKUP($C121,'Retorno dividendos 2016-2021'!$A:$C,3,0),"") -> 
D122: =IFERROR(VLOOKUP($C122,'Retorno dividendos 2016-2021'!$A:$C,2,0),"") ->  | E122: =IFERROR(VLOOKUP($C122,'Retorno dividendos 2016-2021'!$A:$C,3,0),"") -> 
D123: =IFERROR(VLOOKUP($C123,'Retorno dividendos 2016-2021'!$A:$C,2,0),"") ->  | E123: =IFERROR(VLOOKUP($C123,'Retorno dividendos 2016-2021'!$A:$C,3,0),"") -> 
D124: =IFERROR(VLOOKUP($C124,'Retorno dividendos 2016-2021'!$A:$C,2,0),"") ->  | E124: =IFERROR(VLOOKUP($C124,'Retorno dividendos 2016-2021'!$A:$C,3,0),"") -> 
D125: =IFERROR(VLOOKUP($C125,'Retorno dividendos 2016-2021'!$A:$C,2,0),"") ->  | E125: =IFERROR(VLOOKUP($C125,'Retorno dividendos 2016-2021'!$A:$C,3,0),"") -> 
D126: =IFERROR(VLOOKUP($C126,'Retorno dividendos 2016-2021'!$A:$C,2,0),"") ->  | E126: =IFERROR(VLOOKUP($C126,'Retorno dividendos 2016-2021'!$A:$C,3,0),"") -> 
D127: =IFERROR(VLOOKUP($C127,'Retorno dividendos 2016-2021'!$A:$C,2,0),"") ->  | E127: =IFERROR(VLOOKUP($C127,'Retorno dividendos 2016-2021'!$A:$C,3,0),"") -> 
D128: =IFERROR(VLOOKUP($C128,'Retorno dividendos 2016-2021'!$A:$C,2,0),"") ->  | E128: =IFERROR(VLOOKUP($C128,'Retorno dividendos 2016-2021'!$A:$C,3,0),"") -> 
D129: =IFERROR(VLOOKUP($C129,'Retorno dividendos 2016-2021'!$A:$C,2,0),"") ->  | E129: =IFERROR(VLOOKUP($C129,'Retorno dividendos 2016-2021'!$A:$C,3,0),"") -> 
D130: =IFERROR(VLOOKUP($C130,'Retorno dividendos 2016-2021'!$A:$C,2,0),"") ->  | E130: =IFERROR(VLOOKUP($C130,'Retorno dividendos 2016-2021'!$A:$C,3,0),"") -> 
D131: =IFERROR(VLOOKUP($C131,'Retorno dividendos 2016-2021'!$A:$C,2,0),"") ->  | E131: =IFERROR(VLOOKUP($C131,'Retorno dividendos 2016-2021'!$A:$C,3,0),"") -> 
D132: =IFERROR(VLOOKUP($C132,'Retorno dividendos 2016-2021'!$A:$C,2,0),"") ->  | E132: =IFERROR(VLOOKUP($C132,'Retorno dividendos 2016-2021'!$A:$C,3,0),"") -> 
D133: =IFERROR(VLOOKUP($C133,'Retorno dividendos 2016-2021'!$A:$C,2,0),"") ->  | E133: =IFERROR(VLOOKUP($C133,'Retorno dividendos 2016-2021'!$A:$C,3,0),"") -> 
D134: =IFERROR(VLOOKUP($C134,'Retorno dividendos 2016-2021'!$A:$C,2,0),"") ->  | E134: =IFERROR(VLOOKUP($C134,'Retorno dividendos 2016-2021'!$A:$C,3,0),"") -> 
D135: =IFERROR(VLOOKUP($C135,'Retorno dividendos 2016-2021'!$A:$C,2,0),"") ->  | E135: =IFERROR(VLOOKUP($C135,'Retorno dividendos 2016-2021'!$A:$C,3,0),"") -> 
D136: =IFERROR(VLOOKUP($C136,'Retorno dividendos 2016-2021'!$A:$C,2,0),"") ->  | E136: =IFERROR(VLOOKUP($C136,'Retorno dividendos 2016-2021'!$A:$C,3,0),"") -> 
D137: =IFERROR(VLOOKUP($C137,'Retorno dividendos 2016-2021'!$A:$C,2,0),"") ->  | E137: =IFERROR(VLOOKUP($C137,'Retorno dividendos 2016-2021'!$A:$C,3,0),"") -> 
D138: =IFERROR(VLOOKUP($C138,'Retorno dividendos 2016-2021'!$A:$C,2,0),"") ->  | E138: =IFERROR(VLOOKUP($C138,'Retorno dividendos 2016-2021'!$A:$C,3,0),"") -> 
D139: =IFERROR(VLOOKUP($C139,'Retorno dividendos 2016-2021'!$A:$C,2,0),"") ->  | E139: =IFERROR(VLOOKUP($C139,'Retorno dividendos 2016-2021'!$A:$C,3,0),"") -> 
D140: =IFERROR(VLOOKUP($C140,'Retorno dividendos 2016-2021'!$A:$C,2,0),"") ->  | E140: =IFERROR(VLOOKUP($C140,'Retorno dividendos 2016-2021'!$A:$C,3,0),"") -> 
D141: =IFERROR(VLOOKUP($C141,'Retorno dividendos 2016-2021'!$A:$C,2,0),"") ->  | E141: =IFERROR(VLOOKUP($C141,'Retorno dividendos 2016-2021'!$A:$C,3,0),"") -> 
D142: =IFERROR(VLOOKUP($C142,'Retorno dividendos 2016-2021'!$A:$C,2,0),"") ->  | E142: =IFERROR(VLOOKUP($C142,'Retorno dividendos 2016-2021'!$A:$C,3,0),"") -> 
D143: =IFERROR(VLOOKUP($C143,'Retorno dividendos 2016-2021'!$A:$C,2,0),"") ->  | E143: =IFERROR(VLOOKUP($C143,'Retorno dividendos 2016-2021'!$A:$C,3,0),"") -> 
D144: =IFERROR(VLOOKUP($C144,'Retorno dividendos 2016-2021'!$A:$C,2,0),"") ->  | E144: =IFERROR(VLOOKUP($C144,'Retorno dividendos 2016-2021'!$A:$C,3,0),"") -> 
D145: =IFERROR(VLOOKUP($C145,'Retorno dividendos 2016-2021'!$A:$C,2,0),"") ->  | E145: =IFERROR(VLOOKUP($C145,'Retorno dividendos 2016-2021'!$A:$C,3,0),"") ->  | G145: =IF(F145="","",$E$3*F145) -> 
D146: =IFERROR(VLOOKUP($C146,'Retorno dividendos 2016-2021'!$A:$C,2,0),"") ->  | E146: =IFERROR(VLOOKUP($C146,'Retorno dividendos 2016-2021'!$A:$C,3,0),"") -> 
D147: =IFERROR(VLOOKUP($C147,'Retorno dividendos 2016-2021'!$A:$C,2,0),"") ->  | E147: =IFERROR(VLOOKUP($C147,'Retorno dividendos 2016-2021'!$A:$C,3,0),"") -> 
D148: =IFERROR(VLOOKUP($C148,'Retorno dividendos 2016-2021'!$A:$C,2,0),"") ->  | E148: =IFERROR(VLOOKUP($C148,'Retorno dividendos 2016-2021'!$A:$C,3,0),"") -> 
D149: =IFERROR(VLOOKUP($C149,'Retorno dividendos 2016-2021'!$A:$C,2,0),"") ->  | E149: =IFERROR(VLOOKUP($C149,'Retorno dividendos 2016-2021'!$A:$C,3,0),"") -> 
D150: =IFERROR(VLOOKUP($C150,'Retorno dividendos 2016-2021'!$A:$C,2,0),"") ->  | E150: =IFERROR(VLOOKUP($C150,'Retorno dividendos 2016-2021'!$A:$C,3,0),"") -> 
D151: =IFERROR(VLOOKUP($C151,'Retorno dividendos 2016-2021'!$A:$C,2,0),"") ->  | E151: =IFERROR(VLOOKUP($C151,'Retorno dividendos 2016-2021'!$A:$C,3,0),"") -> 
D152: =IFERROR(VLOOKUP($C152,'Retorno dividendos 2016-2021'!$A:$C,2,0),"") ->  | E152: =IFERROR(VLOOKUP($C152,'Retorno dividendos 2016-2021'!$A:$C,3,0),"") -> 
D153: =IFERROR(VLOOKUP($C153,'Retorno dividendos 2016-2021'!$A:$C,2,0),"") ->  | E153: =IFERROR(VLOOKUP($C153,'Retorno dividendos 2016-2021'!$A:$C,3,0),"") -> 
D154: =IFERROR(VLOOKUP($C154,'Retorno dividendos 2016-2021'!$A:$C,2,0),"") ->  | E154: =IFERROR(VLOOKUP($C154,'Retorno dividendos 2016-2021'!$A:$C,3,0),"") -> 
D155: =IFERROR(VLOOKUP($C155,'Retorno dividendos 2016-2021'!$A:$C,2,0),"") ->  | E155: =IFERROR(VLOOKUP($C155,'Retorno dividendos 2016-2021'!$A:$C,3,0),"") -> 
D156: =IFERROR(VLOOKUP($C156,'Retorno dividendos 2016-2021'!$A:$C,2,0),"") ->  | E156: =IFERROR(VLOOKUP($C156,'Retorno dividendos 2016-2021'!$A:$C,3,0),"") -> 
D157: =IFERROR(VLOOKUP($C157,'Retorno dividendos 2016-2021'!$A:$C,2,0),"") ->  | E157: =IFERROR(VLOOKUP($C157,'Retorno dividendos 2016-2021'!$A:$C,3,0),"") -> 
D158: =IFERROR(VLOOKUP($C158,'Retorno dividendos 2016-2021'!$A:$C,2,0),"") ->  | E158: =IFERROR(VLOOKUP($C158,'Retorno dividendos 2016-2021'!$A:$C,3,0),"") -> 
D159: =IFERROR(VLOOKUP($C159,'Retorno dividendos 2016-2021'!$A:$C,2,0),"") ->  | E159: =IFERROR(VLOOKUP($C159,'Retorno dividendos 2016-2021'!$A:$C,3,0),"") -> 
D160: =IFERROR(VLOOKUP($C160,'Retorno dividendos 2016-2021'!$A:$C,2,0),"") ->  | E160: =IFERROR(VLOOKUP($C160,'Retorno dividendos 2016-2021'!$A:$C,3,0),"") -> 
D161: =IFERROR(VLOOKUP($C161,'Retorno dividendos 2016-2021'!$A:$C,2,0),"") ->  | E161: =IFERROR(VLOOKUP($C161,'Retorno dividendos 2016-2021'!$A:$C,3,0),"") -> 
D162: =IFERROR(VLOOKUP($C162,'Retorno dividendos 2016-2021'!$A:$C,2,0),"") ->  | E162: =IFERROR(VLOOKUP($C162,'Retorno dividendos 2016-2021'!$A:$C,3,0),"") -> 
D163: =IFERROR(VLOOKUP($C163,'Retorno dividendos 2016-2021'!$A:$C,2,0),"") ->  | E163: =IFERROR(VLOOKUP($C163,'Retorno dividendos 2016-2021'!$A:$C,3,0),"") -> 
D164: =IFERROR(VLOOKUP($C164,'Retorno dividendos 2016-2021'!$A:$C,2,0),"") ->  | E164: =IFERROR(VLOOKUP($C164,'Retorno dividendos 2016-2021'!$A:$C,3,0),"") -> 
D165: =IFERROR(VLOOKUP($C165,'Retorno dividendos 2016-2021'!$A:$C,2,0),"") ->  | E165: =IFERROR(VLOOKUP($C165,'Retorno dividendos 2016-2021'!$A:$C,3,0),"") -> 
D166: =IFERROR(VLOOKUP($C166,'Retorno dividendos 2016-2021'!$A:$C,2,0),"") ->  | E166: =IFERROR(VLOOKUP($C166,'Retorno dividendos 2016-2021'!$A:$C,3,0),"") -> 
D167: =IFERROR(VLOOKUP($C167,'Retorno dividendos 2016-2021'!$A:$C,2,0),"") ->  | E167: =IFERROR(VLOOKUP($C167,'Retorno dividendos 2016-2021'!$A:$C,3,0),"") -> 
D168: =IFERROR(VLOOKUP($C168,'Retorno dividendos 2016-2021'!$A:$C,2,0),"") ->  | E168: =IFERROR(VLOOKUP($C168,'Retorno dividendos 2016-2021'!$A:$C,3,0),"") -> 
D169: =IFERROR(VLOOKUP($C169,'Retorno dividendos 2016-2021'!$A:$C,2,0),"") ->  | E169: =IFERROR(VLOOKUP($C169,'Retorno dividendos 2016-2021'!$A:$C,3,0),"") -> 
D170: =IFERROR(VLOOKUP($C170,'Retorno dividendos 2016-2021'!$A:$C,2,0),"") ->  | E170: =IFERROR(VLOOKUP($C170,'Retorno dividendos 2016-2021'!$A:$C,3,0),"") -> 
D171: =IFERROR(VLOOKUP($C171,'Retorno dividendos 2016-2021'!$A:$C,2,0),"") ->  | E171: =IFERROR(VLOOKUP($C171,'Retorno dividendos 2016-2021'!$A:$C,3,0),"") -> 
D172: =IFERROR(VLOOKUP($C172,'Retorno dividendos 2016-2021'!$A:$C,2,0),"") ->  | E172: =IFERROR(VLOOKUP($C172,'Retorno dividendos 2016-2021'!$A:$C,3,0),"") -> 
D173: =IFERROR(VLOOKUP($C173,'Retorno dividendos 2016-2021'!$A:$C,2,0),"") ->  | E173: =IFERROR(VLOOKUP($C173,'Retorno dividendos 2016-2021'!$A:$C,3,0),"") -> 
D174: =IFERROR(VLOOKUP($C174,'Retorno dividendos 2016-2021'!$A:$C,2,0),"") ->  | E174: =IFERROR(VLOOKUP($C174,'Retorno dividendos 2016-2021'!$A:$C,3,0),"") -> 
D175: =IFERROR(VLOOKUP($C175,'Retorno dividendos 2016-2021'!$A:$C,2,0),"") ->  | E175: =IFERROR(VLOOKUP($C175,'Retorno dividendos 2016-2021'!$A:$C,3,0),"") -> 
D176: =IFERROR(VLOOKUP($C176,'Retorno dividendos 2016-2021'!$A:$C,2,0),"") ->  | E176: =IFERROR(VLOOKUP($C176,'Retorno dividendos 2016-2021'!$A:$C,3,0),"") -> 
D177: =IFERROR(VLOOKUP($C177,'Retorno dividendos 2016-2021'!$A:$C,2,0),"") ->  | E177: =IFERROR(VLOOKUP($C177,'Retorno dividendos 2016-2021'!$A:$C,3,0),"") -> 
D178: =IFERROR(VLOOKUP($C178,'Retorno dividendos 2016-2021'!$A:$C,2,0),"") ->  | E178: =IFERROR(VLOOKUP($C178,'Retorno dividendos 2016-2021'!$A:$C,3,0),"") -> 
D179: =IFERROR(VLOOKUP($C179,'Retorno dividendos 2016-2021'!$A:$C,2,0),"") ->  | E179: =IFERROR(VLOOKUP($C179,'Retorno dividendos 2016-2021'!$A:$C,3,0),"") -> 
D180: =IFERROR(VLOOKUP($C180,'Retorno dividendos 2016-2021'!$A:$C,2,0),"") ->  | E180: =IFERROR(VLOOKUP($C180,'Retorno dividendos 2016-2021'!$A:$C,3,0),"") -> 
D181: =IFERROR(VLOOKUP($C181,'Retorno dividendos 2016-2021'!$A:$C,2,0),"") ->  | E181: =IFERROR(VLOOKUP($C181,'Retorno dividendos 2016-2021'!$A:$C,3,0),"") -> 
D182: =IFERROR(VLOOKUP($C182,'Retorno dividendos 2016-2021'!$A:$C,2,0),"") ->  | E182: =IFERROR(VLOOKUP($C182,'Retorno dividendos 2016-2021'!$A:$C,3,0),"") -> 
D183: =IFERROR(VLOOKUP($C183,'Retorno dividendos 2016-2021'!$A:$C,2,0),"") ->  | E183: =IFERROR(VLOOKUP($C183,'Retorno dividendos 2016-2021'!$A:$C,3,0),"") -> 
D184: =IFERROR(VLOOKUP($C184,'Retorno dividendos 2016-2021'!$A:$C,2,0),"") ->  | E184: =IFERROR(VLOOKUP($C184,'Retorno dividendos 2016-2021'!$A:$C,3,0),"") -> 
D185: =IFERROR(VLOOKUP($C185,'Retorno dividendos 2016-2021'!$A:$C,2,0),"") ->  | E185: =IFERROR(VLOOKUP($C185,'Retorno dividendos 2016-2021'!$A:$C,3,0),"") -> 
D186: =IFERROR(VLOOKUP($C186,'Retorno dividendos 2016-2021'!$A:$C,2,0),"") ->  | E186: =IFERROR(VLOOKUP($C186,'Retorno dividendos 2016-2021'!$A:$C,3,0),"") -> 
D187: =IFERROR(VLOOKUP($C187,'Retorno dividendos 2016-2021'!$A:$C,2,0),"") ->  | E187: =IFERROR(VLOOKUP($C187,'Retorno dividendos 2016-2021'!$A:$C,3,0),"") -> 
D188: =IFERROR(VLOOKUP($C188,'Retorno dividendos 2016-2021'!$A:$C,2,0),"") ->  | E188: =IFERROR(VLOOKUP($C188,'Retorno dividendos 2016-2021'!$A:$C,3,0),"") -> 
D189: =IFERROR(VLOOKUP($C189,'Retorno dividendos 2016-2021'!$A:$C,2,0),"") ->  | E189: =IFERROR(VLOOKUP($C189,'Retorno dividendos 2016-2021'!$A:$C,3,0),"") -> 
D190: =IFERROR(VLOOKUP($C190,'Retorno dividendos 2016-2021'!$A:$C,2,0),"") ->  | E190: =IFERROR(VLOOKUP($C190,'Retorno dividendos 2016-2021'!$A:$C,3,0),"") -> 
D191: =IFERROR(VLOOKUP($C191,'Retorno dividendos 2016-2021'!$A:$C,2,0),"") ->  | E191: =IFERROR(VLOOKUP($C191,'Retorno dividendos 2016-2021'!$A:$C,3,0),"") -> 
D192: =IFERROR(VLOOKUP($C192,'Retorno dividendos 2016-2021'!$A:$C,2,0),"") ->  | E192: =IFERROR(VLOOKUP($C192,'Retorno dividendos 2016-2021'!$A:$C,3,0),"") -> 
D193: =IFERROR(VLOOKUP($C193,'Retorno dividendos 2016-2021'!$A:$C,2,0),"") ->  | E193: =IFERROR(VLOOKUP($C193,'Retorno dividendos 2016-2021'!$A:$C,3,0),"") -> 
D194: =IFERROR(VLOOKUP($C194,'Retorno dividendos 2016-2021'!$A:$C,2,0),"") ->  | E194: =IFERROR(VLOOKUP($C194,'Retorno dividendos 2016-2021'!$A:$C,3,0),"") -> 
D195: =IFERROR(VLOOKUP($C195,'Retorno dividendos 2016-2021'!$A:$C,2,0),"") ->  | E195: =IFERROR(VLOOKUP($C195,'Retorno dividendos 2016-2021'!$A:$C,3,0),"") -> 
D196: =IFERROR(VLOOKUP($C196,'Retorno dividendos 2016-2021'!$A:$C,2,0),"") ->  | E196: =IFERROR(VLOOKUP($C196,'Retorno dividendos 2016-2021'!$A:$C,3,0),"") -> 
D197: =IFERROR(VLOOKUP($C197,'Retorno dividendos 2016-2021'!$A:$C,2,0),"") ->  | E197: =IFERROR(VLOOKUP($C197,'Retorno dividendos 2016-2021'!$A:$C,3,0),"") -> 
D198: =IFERROR(VLOOKUP($C198,'Retorno dividendos 2016-2021'!$A:$C,2,0),"") ->  | E198: =IFERROR(VLOOKUP($C198,'Retorno dividendos 2016-2021'!$A:$C,3,0),"") -> 
D199: =IFERROR(VLOOKUP($C199,'Retorno dividendos 2016-2021'!$A:$C,2,0),"") ->  | E199: =IFERROR(VLOOKUP($C199,'Retorno dividendos 2016-2021'!$A:$C,3,0),"") -> 
D200: =IFERROR(VLOOKUP($C200,'Retorno dividendos 2016-2021'!$A:$C,2,0),"") ->  | E200: =IFERROR(VLOOKUP($C200,'Retorno dividendos 2016-2021'!$A:$C,3,0),"") -> 
D201: =IFERROR(VLOOKUP($C201,'Retorno dividendos 2016-2021'!$A:$C,2,0),"") ->  | E201: =IFERROR(VLOOKUP($C201,'Retorno dividendos 2016-2021'!$A:$C,3,0),"") -> 
... 161 more rows

Sheet Confira os resultados
B1: =CONCATENATE('Monte uma carteira de FIIs'!E2,", veja os detalhes da sua carteira de FIIs:") -> Seu Nome, veja os detalhes da sua carteira de FIIs: | S1: Ano | T1: Valor Investido | U1: Dividendo anual | AA1: Mês Atual | AB1: =MONTH(TODAY()) -> 8
B2: Seu investimento inicial foi de: | F2: =SUM(C12:C26) -> 15000 | S2: =AB5 -> 2021 | T2: ='Monte uma carteira de FIIs'!E3+('Monte uma carteira de FIIs'!#REF!*'Confira os resultados'!AB1) ->  | U2: =T2*((AB3/12) * (12-AB1+1)) -> 
B3: Com esse investimento, em um ano, essa carteira de FIIs proporcionaria dividendos* de: | F3: =SUM(D12:D26) -> 0 | S3: =IFERROR(IF(S2=$AB$6,"",S2+1),"") ->  | T3: =IF(S3="","",T2+'Monte uma carteira de FIIs'!#REF!*12) ->  | U3: =IFERROR(T3*$AB$3,"") ->  | AA3: Dividend Yield | AB3: =SUM(AB9:AB23) -> 0
B4: A taxa média de retorno com dividendos* da sua carteira de FIIs é de: | F4: =F3/F2 -> 0 | S4: =IFERROR(IF(S3=$AB$6,"",S3+1),"") ->  | T4: =IF(S4="","",T3+'Monte uma carteira de FIIs'!#REF!*12) ->  | U4: =IFERROR(T4*$AB$3,"") -> 
B5: Para ter renda de R$ 1.000 por mês com os dividendos* dessa carteira, você precisaria investir: | F5: =12000/F4 ->  | T5: =IF(S5="","",T4+'Monte uma carteira de FIIs'!#REF!*12) ->  | AA5: Ano Atual | AB5: =YEAR(TODAY()) -> 2021
B6: =CONCATENATE("Para ter renda de R$ ",'Monte uma carteira de FIIs'!E4," por mês com os dividendos* dessa carteira, você precisaria investir: ") -> Para ter renda de R$ 1000 por mês com os dividendos* dessa carteira, você precisaria investir: | F6: =Validação*12/'Confira os resultados'!F4 ->  | T6: =IF(S6="","",T5+'Monte uma carteira de FIIs'!#REF!*12) ->  | AA6: Ano Aposentadoria | AB6: =AB5+'Monte uma carteira de FIIs'!#REF! -> 
B7: A taxa Selic atual é de: | F7: 0.0525 | T7: =IF(S7="","",T6+'Monte uma carteira de FIIs'!#REF!*12) -> 
B8: Portanto, em relação à Selic, a taxa de retorno com dividendos da sua carteira é: | F8: =IF(F4>F7,"Maior",IF(F4=F7,"Equivalente","Menor")) -> Menor | T8: =IF(S8="","",T7+'Monte uma carteira de FIIs'!#REF!*12) -> 
B9: * Considera a taxa de retorno com dividendos (dividend yield) média anual entre junho de 2016 e junho de 2021 | T9: =IF(S9="","",T8+'Monte uma carteira de FIIs'!#REF!*12) ->  | AB9: =IFERROR('Monte uma carteira de FIIs'!F7*'Confira os resultados'!F12,"") -> 
T10: =IF(S10="","",T9+'Monte uma carteira de FIIs'!#REF!*12) ->  | AB10: =IFERROR('Monte uma carteira de FIIs'!F8*'Confira os resultados'!F13,"") -> 
B11: Código do fundo | C11: Investimento inicial | D11: Dividendos recebidos (jun/20 - jun/21) | E11: Taxa de retorno com dividendos (jun/20 - jun/21) | F11: Taxa de retorno com dividendos (jun/16 - jun/21) | T11: =IF(S11="","",T10+'Monte uma carteira de FIIs'!#REF!*12) ->  | AB11: =IFERROR('Monte uma carteira de FIIs'!F9*'Confira os resultados'!F14,"") -> 
B12: =IF('Monte uma carteira de FIIs'!C7="","",'Monte uma carteira de FIIs'!C7) ->  | C12: =IF('Monte uma carteira de FIIs'!G7="","",'Monte uma carteira de FIIs'!G7) -> 15000 | D12: =IFERROR(C12*F12,"") ->  | E12: =IFERROR(VLOOKUP(B12,'Retorno dividendos 2016-2021'!$A:$I,8,0),"") ->  | F12: =IFERROR(VLOOKUP(B12,'Retorno dividendos 2016-2021'!A:I,9,0),"") ->  | T12: =IF(S12="","",T11+'Monte uma carteira de FIIs'!#REF!*12) ->  | AB12: =IFERROR('Monte uma carteira de FIIs'!F10*'Confira os resultados'!F15,"") -> 
B13: =IF('Monte uma carteira de FIIs'!C8="","",'Monte uma carteira de FIIs'!C8) ->  | C13: =IF('Monte uma carteira de FIIs'!G8="","",'Monte uma carteira de FIIs'!G8) ->  | D13: =IFERROR(C13*F13,"") ->  | E13: =IFERROR(VLOOKUP(B13,'Retorno dividendos 2016-2021'!$A:$I,8,0),"") ->  | F13: =IFERROR(VLOOKUP(B13,'Retorno dividendos 2016-2021'!A:I,9,0),"") ->  | H13: Composição da carteira por segmento | T13: =IF(S13="","",T12+'Monte uma carteira de FIIs'!#REF!*12) ->  | AB13: =IFERROR('Monte uma carteira de FIIs'!F11*'Confira os resultados'!F16,"") -> 
B14: =IF('Monte uma carteira de FIIs'!C9="","",'Monte uma carteira de FIIs'!C9) ->  | C14: =IF('Monte uma carteira de FIIs'!G9="","",'Monte uma carteira de FIIs'!G9) ->  | E14: =IFERROR(VLOOKUP(B14,'Retorno dividendos 2016-2021'!$A:$I,8,0),"") ->  | F14: =IFERROR(VLOOKUP(B14,'Retorno dividendos 2016-2021'!A:I,9,0),"") ->  | H14: Recebíveis | I14: =SUMIF('Monte uma carteira de FIIs'!$E$7:$E$21,'Confira os resultados'!H14,'Monte uma carteira de FIIs'!$G$7:$G$21)/'Confira os resultados'!$F$2 -> 0 | T14: =IF(S14="","",T13+'Monte uma carteira de FIIs'!#REF!*12) ->  | AB14: =IFERROR('Monte uma carteira de FIIs'!F12*'Confira os resultados'!F17,"") -> 
B15: =IF('Monte uma carteira de FIIs'!C10="","",'Monte uma carteira de FIIs'!C10) ->  | C15: =IF('Monte uma carteira de FIIs'!G10="","",'Monte uma carteira de FIIs'!G10) ->  | E15: =IFERROR(VLOOKUP(B15,'Retorno dividendos 2016-2021'!$A:$I,8,0),"") ->  | F15: =IFERROR(VLOOKUP(B15,'Retorno dividendos 2016-2021'!A:I,9,0),"") ->  | H15: Lajes Corporativas | I15: =SUMIF('Monte uma carteira de FIIs'!$E$7:$E$21,'Confira os resultados'!H15,'Monte uma carteira de FIIs'!$G$7:$G$21)/'Confira os resultados'!$F$2 -> 0 | T15: =IF(S15="","",T14+'Monte uma carteira de FIIs'!#REF!*12) ->  | AB15: =IFERROR('Monte uma carteira de FIIs'!F13*'Confira os resultados'!F18,"") -> 
B16: =IF('Monte uma carteira de FIIs'!C11="","",'Monte uma carteira de FIIs'!C11) ->  | C16: =IF('Monte uma carteira de FIIs'!G11="","",'Monte uma carteira de FIIs'!G11) ->  | E16: =IFERROR(VLOOKUP(B16,'Retorno dividendos 2016-2021'!$A:$I,8,0),"") ->  | F16: =IFERROR(VLOOKUP(B16,'Retorno dividendos 2016-2021'!A:I,9,0),"") ->  | H16: Híbrido | I16: =SUMIF('Monte uma carteira de FIIs'!$E$7:$E$21,'Confira os resultados'!H16,'Monte uma carteira de FIIs'!$G$7:$G$21)/'Confira os resultados'!$F$2 -> 0 | T16: =IF(S16="","",T15+'Monte uma carteira de FIIs'!#REF!*12) ->  | AB16: =IFERROR('Monte uma carteira de FIIs'!F14*'Confira os resultados'!F19,"") -> 
B17: =IF('Monte uma carteira de FIIs'!C12="","",'Monte uma carteira de FIIs'!C12) ->  | C17: =IF('Monte uma carteira de FIIs'!G12="","",'Monte uma carteira de FIIs'!G12) ->  | E17: =IFERROR(VLOOKUP(B17,'Retorno dividendos 2016-2021'!$A:$I,8,0),"") ->  | F17: =IFERROR(VLOOKUP(B17,'Retorno dividendos 2016-2021'!A:I,9,0),"") ->  | H17: Fundo de Fundos | I17: =SUMIF('Monte uma carteira de FIIs'!$E$7:$E$21,'Confira os resultados'!H17,'Monte uma carteira de FIIs'!$G$7:$G$21)/'Confira os resultados'!$F$2 -> 0 | T17: =IF(S17="","",T16+'Monte uma carteira de FIIs'!#REF!*12) ->  | AB17: =IFERROR('Monte uma carteira de FIIs'!F15*'Confira os resultados'!F20,"") -> 
B18: =IF('Monte uma carteira de FIIs'!C13="","",'Monte uma carteira de FIIs'!C13) ->  | C18: =IF('Monte uma carteira de FIIs'!G13="","",'Monte uma carteira de FIIs'!G13) ->  | E18: =IFERROR(VLOOKUP(B18,'Retorno dividendos 2016-2021'!$A:$I,8,0),"") ->  | F18: =IFERROR(VLOOKUP(B18,'Retorno dividendos 2016-2021'!A:I,9,0),"") ->  | H18: Logística | I18: =SUMIF('Monte uma carteira de FIIs'!$E$7:$E$21,'Confira os resultados'!H18,'Monte uma carteira de FIIs'!$G$7:$G$21)/'Confira os resultados'!$F$2 -> 0 | T18: =IF(S18="","",T17+'Monte uma carteira de FIIs'!#REF!*12) ->  | AB18: =IFERROR('Monte uma carteira de FIIs'!F16*'Confira os resultados'!F21,"") -> 
B19: =IF('Monte uma carteira de FIIs'!C14="","",'Monte uma carteira de FIIs'!C14) ->  | C19: =IF('Monte uma carteira de FIIs'!G14="","",'Monte uma carteira de FIIs'!G14) ->  | E19: =IFERROR(VLOOKUP(B19,'Retorno dividendos 2016-2021'!$A:$I,8,0),"") ->  | F19: =IFERROR(VLOOKUP(B19,'Retorno dividendos 2016-2021'!A:I,9,0),"") ->  | H19: Shoppings | I19: =SUMIF('Monte uma carteira de FIIs'!$E$7:$E$21,'Confira os resultados'!H19,'Monte uma carteira de FIIs'!$G$7:$G$21)/'Confira os resultados'!$F$2 -> 0 | T19: =IF(S19="","",T18+'Monte uma carteira de FIIs'!#REF!*12) ->  | AB19: =IFERROR('Monte uma carteira de FIIs'!F17*'Confira os resultados'!F22,"") -> 
B20: =IF('Monte uma carteira de FIIs'!C15="","",'Monte uma carteira de FIIs'!C15) ->  | C20: =IF('Monte uma carteira de FIIs'!G15="","",'Monte uma carteira de FIIs'!G15) ->  | E20: =IFERROR(VLOOKUP(B20,'Retorno dividendos 2016-2021'!$A:$I,8,0),"") ->  | F20: =IFERROR(VLOOKUP(B20,'Retorno dividendos 2016-2021'!A:I,9,0),"") ->  | H20: Rural | I20: =SUMIF('Monte uma carteira de FIIs'!$E$7:$E$21,'Confira os resultados'!H20,'Monte uma carteira de FIIs'!$G$7:$G$21)/'Confira os resultados'!$F$2 -> 0 | T20: =IF(S20="","",T19+'Monte uma carteira de FIIs'!#REF!*12) ->  | AB20: =IFERROR('Monte uma carteira de FIIs'!F18*'Confira os resultados'!F23,"") -> 
B21: =IF('Monte uma carteira de FIIs'!C16="","",'Monte uma carteira de FIIs'!C16) ->  | C21: =IF('Monte uma carteira de FIIs'!G16="","",'Monte uma carteira de FIIs'!G16) ->  | E21: =IFERROR(VLOOKUP(B21,'Retorno dividendos 2016-2021'!$A:$I,8,0),"") ->  | F21: =IFERROR(VLOOKUP(B21,'Retorno dividendos 2016-2021'!A:I,9,0),"") ->  | H21: Agências | I21: =SUMIF('Monte uma carteira de FIIs'!$E$7:$E$21,'Confira os resultados'!H21,'Monte uma carteira de FIIs'!$G$7:$G$21)/'Confira os resultados'!$F$2 -> 0 | T21: =IF(S21="","",T20+'Monte uma carteira de FIIs'!#REF!*12) ->  | AB21: =IFERROR('Monte uma carteira de FIIs'!F19*'Confira os resultados'!F24,"") -> 
B22: =IF('Monte uma carteira de FIIs'!C17="","",'Monte uma carteira de FIIs'!C17) ->  | C22: =IF('Monte uma carteira de FIIs'!G17="","",'Monte uma carteira de FIIs'!G17) ->  | E22: =IFERROR(VLOOKUP(B22,'Retorno dividendos 2016-2021'!$A:$I,8,0),"") ->  | F22: =IFERROR(VLOOKUP(B22,'Retorno dividendos 2016-2021'!A:I,9,0),"") ->  | H22: Hotel | I22: =SUMIF('Monte uma carteira de FIIs'!$E$7:$E$21,'Confira os resultados'!H22,'Monte uma carteira de FIIs'!$G$7:$G$21)/'Confira os resultados'!$F$2 -> 0 | T22: =IF(S22="","",T21+'Monte uma carteira de FIIs'!#REF!*12) ->  | AB22: =IFERROR('Monte uma carteira de FIIs'!F20*'Confira os resultados'!F25,"") -> 
B23: =IF('Monte uma carteira de FIIs'!C18="","",'Monte uma carteira de FIIs'!C18) ->  | C23: =IF('Monte uma carteira de FIIs'!G18="","",'Monte uma carteira de FIIs'!G18) ->  | E23: =IFERROR(VLOOKUP(B23,'Retorno dividendos 2016-2021'!$A:$I,8,0),"") ->  | F23: =IFERROR(VLOOKUP(B23,'Retorno dividendos 2016-2021'!A:I,9,0),"") ->  | H23: Educacional | I23: =SUMIF('Monte uma carteira de FIIs'!$E$7:$E$21,'Confira os resultados'!H23,'Monte uma carteira de FIIs'!$G$7:$G$21)/'Confira os resultados'!$F$2 -> 0 | T23: =IF(S23="","",T22+'Monte uma carteira de FIIs'!#REF!*12) ->  | AB23: =IFERROR('Monte uma carteira de FIIs'!F21*'Confira os resultados'!F26,"") -> 
B24: =IF('Monte uma carteira de FIIs'!C19="","",'Monte uma carteira de FIIs'!C19) ->  | C24: =IF('Monte uma carteira de FIIs'!G19="","",'Monte uma carteira de FIIs'!G19) ->  | E24: =IFERROR(VLOOKUP(B24,'Retorno dividendos 2016-2021'!$A:$I,8,0),"") ->  | F24: =IFERROR(VLOOKUP(B24,'Retorno dividendos 2016-2021'!A:I,9,0),"") ->  | H24: Desenvolvimento | I24: =SUMIF('Monte uma carteira de FIIs'!$E$7:$E$21,'Confira os resultados'!H24,'Monte uma carteira de FIIs'!$G$7:$G$21)/'Confira os resultados'!$F$2 -> 0 | T24: =IF(S24="","",T23+'Monte uma carteira de FIIs'!#REF!*12) -> 
B25: =IF('Monte uma carteira de FIIs'!C20="","",'Monte uma carteira de FIIs'!C20) ->  | C25: =IF('Monte uma carteira de FIIs'!G20="","",'Monte uma carteira de FIIs'!G20) ->  | E25: =IFERROR(VLOOKUP(B25,'Retorno dividendos 2016-2021'!$A:$I,8,0),"") ->  | F25: =IFERROR(VLOOKUP(B25,'Retorno dividendos 2016-2021'!A:I,9,0),"") ->  | S25: =IFERROR(IF(#REF!=$AB$6,"",#REF!+1),"") ->  | T25: =IF(S25="","",#REF!+'Monte uma carteira de FIIs'!#REF!*12) -> 
B26: =IF('Monte uma carteira de FIIs'!C21="","",'Monte uma carteira de FIIs'!C21) ->  | C26: =IF('Monte uma carteira de FIIs'!G21="","",'Monte uma carteira de FIIs'!G21) ->  | E26: =IFERROR(VLOOKUP(B26,'Retorno dividendos 2016-2021'!$A:$I,8,0),"") ->  | F26: =IFERROR(VLOOKUP(B26,'Retorno dividendos 2016-2021'!A:I,9,0),"") ->  | T26: =IF(S26="","",T25+'Monte uma carteira de FIIs'!#REF!*12) -> 
T27: =IF(S27="","",T26+'Monte uma carteira de FIIs'!#REF!*12) -> 
T28: =IF(S28="","",T27+'Monte uma carteira de FIIs'!#REF!*12) -> 
T29: =IF(S29="","",T28+'Monte uma carteira de FIIs'!#REF!*12) -> 
T30: =IF(S30="","",T29+'Monte uma carteira de FIIs'!#REF!*12) -> 
T31: =IF(S31="","",T30+'Monte uma carteira de FIIs'!#REF!*12) -> 
T32: =IF(S32="","",T31+'Monte uma carteira de FIIs'!#REF!*12) -> 
T33: =IF(S33="","",T32+'Monte uma carteira de FIIs'!#REF!*12) -> 
T34: =IF(S34="","",T33+'Monte uma carteira de FIIs'!#REF!*12) -> 
T35: =IF(S35="","",T34+'Monte uma carteira de FIIs'!#REF!*12) -> 
T36: =IF(S36="","",T35+'Monte uma carteira de FIIs'!#REF!*12) -> 
T37: =IF(S37="","",T36+'Monte uma carteira de FIIs'!#REF!*12) -> 
T38: =IF(S38="","",T37+'Monte uma carteira de FIIs'!#REF!*12) -> 
T39: =IF(S39="","",T38+'Monte uma carteira de FIIs'!#REF!*12) -> 
T40: =IF(S40="","",T39+'Monte uma carteira de FIIs'!#REF!*12) -> 
T41: =IF(S41="","",T40+'Monte uma carteira de FIIs'!#REF!*12) -> 
T42: =IF(S42="","",T41+'Monte uma carteira de FIIs'!#REF!*12) -> 
T43: =IF(S43="","",T42+'Monte uma carteira de FIIs'!#REF!*12) -> 
T44: =IF(S44="","",T43+'Monte uma carteira de FIIs'!#REF!*12) -> 
T45: =IF(S45="","",T44+'Monte uma carteira de FIIs'!#REF!*12) -> 
T46: =IF(S46="","",T45+'Monte uma carteira de FIIs'!#REF!*12) -> 
T47: =IF(S47="","",T46+'Monte uma carteira de FIIs'!#REF!*12) -> 
T48: =IF(S48="","",T47+'Monte uma carteira de FIIs'!#REF!*12) -> 
T49: =IF(S49="","",T48+'Monte uma carteira de FIIs'!#REF!*12) -> 
S50: =IFERROR(IF(S49=$AB$6,"",S49+1),"") ->  | T50: =IF(S50="","",T49+'Monte uma carteira de FIIs'!#REF!*12) ->  | U50: =IFERROR(T50*$AB$3,"") -> 
T51: =IF(S51="","",T50+'Monte uma carteira de FIIs'!#REF!*12) -> 
T52: =IF(S52="","",T51+'Monte uma carteira de FIIs'!#REF!*12) -> 
T53: =IF(S53="","",T52+'Monte uma carteira de FIIs'!#REF!*12) -> 
T54: =IF(S54="","",T53+'Monte uma carteira de FIIs'!#REF!*12) -> 
T55: =IF(S55="","",T54+'Monte uma carteira de FIIs'!#REF!*12) -> 
T56: =IF(S56="","",T55+'Monte uma carteira de FIIs'!#REF!*12) -> 
T57: =IF(S57="","",T56+'Monte uma carteira de FIIs'!#REF!*12) -> 
T58: =IF(S58="","",T57+'Monte uma carteira de FIIs'!#REF!*12) -> 
T59: =IF(S59="","",T58+'Monte uma carteira de FIIs'!#REF!*12) -> 
T60: =IF(S60="","",T59+'Monte uma carteira de FIIs'!#REF!*12) -> 
T61: =IF(S61="","",T60+'Monte uma carteira de FIIs'!#REF!*12) -> 
T62: =IF(S62="","",T61+'Monte uma carteira de FIIs'!#REF!*12) -> 
T63: =IF(S63="","",T62+'Monte uma carteira de FIIs'!#REF!*12) -> 
T64: =IF(S64="","",T63+'Monte uma carteira de FIIs'!#REF!*12) -> 
T65: =IF(S65="","",T64+'Monte uma carteira de FIIs'!#REF!*12) -> 
T66: =IF(S66="","",T65+'Monte uma carteira de FIIs'!#REF!*12) -> 
T67: =IF(S67="","",T66+'Monte uma carteira de FIIs'!#REF!*12) -> 
T68: =IF(S68="","",T67+'Monte uma carteira de FIIs'!#REF!*12) -> 
T69: =IF(S69="","",T68+'Monte uma carteira de FIIs'!#REF!*12) -> 
T70: =IF(S70="","",T69+'Monte uma carteira de FIIs'!#REF!*12) -> 
T71: =IF(S71="","",T70+'Monte uma carteira de FIIs'!#REF!*12) -> 
T72: =IF(S72="","",T71+'Monte uma carteira de FIIs'!#REF!*12) -> 
T73: =IF(S73="","",T72+'Monte uma carteira de FIIs'!#REF!*12) -> 
T74: =IF(S74="","",T73+'Monte uma carteira de FIIs'!#REF!*12) -> 
T75: =IF(S75="","",T74+'Monte uma carteira de FIIs'!#REF!*12) -> 
T76: =IF(S76="","",T75+'Monte uma carteira de FIIs'!#REF!*12) -> 
T77: =IF(S77="","",T76+'Monte uma carteira de FIIs'!#REF!*12) -> 
T78: =IF(S78="","",T77+'Monte uma carteira de FIIs'!#REF!*12) -> 
T79: =IF(S79="","",T78+'Monte uma carteira de FIIs'!#REF!*12) -> 
T80: =IF(S80="","",T79+'Monte uma carteira de FIIs'!#REF!*12) -> 
T81: =IF(S81="","",T80+'Monte uma carteira de FIIs'!#REF!*12) -> 
T82: =IF(S82="","",T81+'Monte uma carteira de FIIs'!#REF!*12) -> 
T83: =IF(S83="","",T82+'Monte uma carteira de FIIs'!#REF!*12) -> 
T84: =IF(S84="","",T83+'Monte uma carteira de FIIs'!#REF!*12) -> 
T85: =IF(S85="","",T84+'Monte uma carteira de FIIs'!#REF!*12) -> 
T86: =IF(S86="","",T85+'Monte uma carteira de FIIs'!#REF!*12) -> 
T87: =IF(S87="","",T86+'Monte uma carteira de FIIs'!#REF!*12) -> 
T88: =IF(S88="","",T87+'Monte uma carteira de FIIs'!#REF!*12) -> 
T89: =IF(S89="","",T88+'Monte uma carteira de FIIs'!#REF!*12) -> 
T90: =IF(S90="","",T89+'Monte uma carteira de FIIs'!#REF!*12) -> 
T91: =IF(S91="","",T90+'Monte uma carteira de FIIs'!#REF!*12) -> 
T92: =IF(S92="","",T91+'Monte uma carteira de FIIs'!#REF!*12) -> 
T93: =IF(S93="","",T92+'Monte uma carteira de FIIs'!#REF!*12) -> 
T94: =IF(S94="","",T93+'Monte uma carteira de FIIs'!#REF!*12) -> 
T95: =IF(S95="","",T94+'Monte uma carteira de FIIs'!#REF!*12) -> 
T96: =IF(S96="","",T95+'Monte uma carteira de FIIs'!#REF!*12) -> 
T97: =IF(S97="","",T96+'Monte uma carteira de FIIs'!#REF!*12) -> 
T98: =IF(S98="","",T97+'Monte uma carteira de FIIs'!#REF!*12) -> 
T99: =IF(S99="","",T98+'Monte uma carteira de FIIs'!#REF!*12) -> 
T100: =IF(S100="","",T99+'Monte uma carteira de FIIs'!#REF!*12) -> 
T101: =IF(S101="","",T100+'Monte uma carteira de FIIs'!#REF!*12) -> 
T102: =IF(S102="","",T101+'Monte uma carteira de FIIs'!#REF!*12) -> 
T103: =IF(S103="","",T102+'Monte uma carteira de FIIs'!#REF!*12) -> 
T104: =IF(S104="","",T103+'Monte uma carteira de FIIs'!#REF!*12) -> 
T105: =IF(S105="","",T104+'Monte uma carteira de FIIs'!#REF!*12) -> 
T106: =IF(S106="","",T105+'Monte uma carteira de FIIs'!#REF!*12) -> 
T107: =IF(S107="","",T106+'Monte uma carteira de FIIs'!#REF!*12) -> 
T108: =IF(S108="","",T107+'Monte uma carteira de FIIs'!#REF!*12) -> 
T109: =IF(S109="","",T108+'Monte uma carteira de FIIs'!#REF!*12) -> 
T110: =IF(S110="","",T109+'Monte uma carteira de FIIs'!#REF!*12) -> 
T111: =IF(S111="","",T110+'Monte uma carteira de FIIs'!#REF!*12) -> 
T112: =IF(S112="","",T111+'Monte uma carteira de FIIs'!#REF!*12) -> 
T113: =IF(S113="","",T112+'Monte uma carteira de FIIs'!#REF!*12) -> 
S114: =IFERROR(IF(S113=$AB$6,"",S113+1),"") ->  | T114: =IF(S114="","",T113+'Monte uma carteira de FIIs'!#REF!*12) ->  | U114: =IFERROR(T114*$AB$3,"") -> 
T115: =IF(S115="","",T114+'Monte uma carteira de FIIs'!#REF!*12) -> 
T116: =IF(S116="","",T115+'Monte uma carteira de FIIs'!#REF!*12) -> 
T117: =IF(S117="","",T116+'Monte uma carteira de FIIs'!#REF!*12) -> 
T118: =IF(S118="","",T117+'Monte uma carteira de FIIs'!#REF!*12) -> 
T119: =IF(S119="","",T118+'Monte uma carteira de FIIs'!#REF!*12) -> 
T120: =IF(S120="","",T119+'Monte uma carteira de FIIs'!#REF!*12) -> 
T121: =IF(S121="","",T120+'Monte uma carteira de FIIs'!#REF!*12) -> 
T122: =IF(S122="","",T121+'Monte uma carteira de FIIs'!#REF!*12) -> 
T123: =IF(S123="","",T122+'Monte uma carteira de FIIs'!#REF!*12) -> 
T124: =IF(S124="","",T123+'Monte uma carteira de FIIs'!#REF!*12) -> 
T125: =IF(S125="","",T124+'Monte uma carteira de FIIs'!#REF!*12) -> 
T126: =IF(S126="","",T125+'Monte uma carteira de FIIs'!#REF!*12) -> 
T127: =IF(S127="","",T126+'Monte uma carteira de FIIs'!#REF!*12) -> 
T128: =IF(S128="","",T127+'Monte uma carteira de FIIs'!#REF!*12) -> 
T129: =IF(S129="","",T128+'Monte uma carteira de FIIs'!#REF!*12) -> 
T130: =IF(S130="","",T129+'Monte uma carteira de FIIs'!#REF!*12) -> 
T131: =IF(S131="","",T130+'Monte uma carteira de FIIs'!#REF!*12) -> 
T132: =IF(S132="","",T131+'Monte uma carteira de FIIs'!#REF!*12) -> 
T133: =IF(S133="","",T132+'Monte uma carteira de FIIs'!#REF!*12) -> 
T134: =IF(S134="","",T133+'Monte uma carteira de FIIs'!#REF!*12) -> 
T135: =IF(S135="","",T134+'Monte uma carteira de FIIs'!#REF!*12) -> 
T136: =IF(S136="","",T135+'Monte uma carteira de FIIs'!#REF!*12) -> 
T137: =IF(S137="","",T136+'Monte uma carteira de FIIs'!#REF!*12) -> 
T138: =IF(S138="","",T137+'Monte uma carteira de FIIs'!#REF!*12) -> 
T139: =IF(S139="","",T138+'Monte uma carteira de FIIs'!#REF!*12) -> 
T140: =IF(S140="","",T139+'Monte uma carteira de FIIs'!#REF!*12) -> 
T141: =IF(S141="","",T140+'Monte uma carteira de FIIs'!#REF!*12) -> 
T142: =IF(S142="","",T141+'Monte uma carteira de FIIs'!#REF!*12) -> 
T143: =IF(S143="","",T142+'Monte uma carteira de FIIs'!#REF!*12) -> 
T144: =IF(S144="","",T143+'Monte uma carteira de FIIs'!#REF!*12) -> 
T145: =IF(S145="","",T144+'Monte uma carteira de FIIs'!#REF!*12) -> 
T146: =IF(S146="","",T145+'Monte uma carteira de FIIs'!#REF!*12) -> 
T147: =IF(S147="","",T146+'Monte uma carteira de FIIs'!#REF!*12) -> 
T148: =IF(S148="","",T147+'Monte uma carteira de FIIs'!#REF!*12) -> 
T149: =IF(S149="","",T148+'Monte uma carteira de FIIs'!#REF!*12) -> 
T150: =IF(S150="","",T149+'Monte uma carteira de FIIs'!#REF!*12) -> 
T151: =IF(S151="","",T150+'Monte uma carteira de FIIs'!#REF!*12) -> 
T152: =IF(S152="","",T151+'Monte uma carteira de FIIs'!#REF!*12) -> 
T153: =IF(S153="","",T152+'Monte uma carteira de FIIs'!#REF!*12) -> 
T154: =IF(S154="","",T153+'Monte uma carteira de FIIs'!#REF!*12) -> 
T155: =IF(S155="","",T154+'Monte uma carteira de FIIs'!#REF!*12) -> 
T156: =IF(S156="","",T155+'Monte uma carteira de FIIs'!#REF!*12) -> 
T157: =IF(S157="","",T156+'Monte uma carteira de FIIs'!#REF!*12) -> 
T158: =IF(S158="","",T157+'Monte uma carteira de FIIs'!#REF!*12) -> 
T159: =IF(S159="","",T158+'Monte uma carteira de FIIs'!#REF!*12) -> 
T160: =IF(S160="","",T159+'Monte uma carteira de FIIs'!#REF!*12) -> 
T161: =IF(S161="","",T160+'Monte uma carteira de FIIs'!#REF!*12) -> 
T162: =IF(S162="","",T161+'Monte uma carteira de FIIs'!#REF!*12) -> 
T163: =IF(S163="","",T162+'Monte uma carteira de FIIs'!#REF!*12) -> 
T164: =IF(S164="","",T163+'Monte uma carteira de FIIs'!#REF!*12) -> 
T165: =IF(S165="","",T164+'Monte uma carteira de FIIs'!#REF!*12) -> 
T166: =IF(S166="","",T165+'Monte uma carteira de FIIs'!#REF!*12) -> 
T167: =IF(S167="","",T166+'Monte uma carteira de FIIs'!#REF!*12) -> 
T168: =IF(S168="","",T167+'Monte uma carteira de FIIs'!#REF!*12) -> 
T169: =IF(S169="","",T168+'Monte uma carteira de FIIs'!#REF!*12) -> 
T170: =IF(S170="","",T169+'Monte uma carteira de FIIs'!#REF!*12) -> 
T171: =IF(S171="","",T170+'Monte uma carteira de FIIs'!#REF!*12) -> 
T172: =IF(S172="","",T171+'Monte uma carteira de FIIs'!#REF!*12) -> 
T173: =IF(S173="","",T172+'Monte uma carteira de FIIs'!#REF!*12) -> 
T174: =IF(S174="","",T173+'Monte uma carteira de FIIs'!#REF!*12) -> 
T175: =IF(S175="","",T174+'Monte uma carteira de FIIs'!#REF!*12) -> 
T176: =IF(S176="","",T175+'Monte uma carteira de FIIs'!#REF!*12) -> 
T177: =IF(S177="","",T176+'Monte uma carteira de FIIs'!#REF!*12) -> 
S178: =IFERROR(IF(S177=$AB$6,"",S177+1),"") ->  | T178: =IF(S178="","",T177+'Monte uma carteira de FIIs'!#REF!*12) ->  | U178: =IFERROR(T178*$AB$3,"") -> 
T179: =IF(S179="","",T178+'Monte uma carteira de FIIs'!#REF!*12) -> 
T180: =IF(S180="","",T179+'Monte uma carteira de FIIs'!#REF!*12) -> 
T181: =IF(S181="","",T180+'Monte uma carteira de FIIs'!#REF!*12) -> 
T182: =IF(S182="","",T181+'Monte uma carteira de FIIs'!#REF!*12) -> 
T183: =IF(S183="","",T182+'Monte uma carteira de FIIs'!#REF!*12) -> 
T184: =IF(S184="","",T183+'Monte uma carteira de FIIs'!#REF!*12) -> 
T185: =IF(S185="","",T184+'Monte uma carteira de FIIs'!#REF!*12) -> 
T186: =IF(S186="","",T185+'Monte uma carteira de FIIs'!#REF!*12) -> 
T187: =IF(S187="","",T186+'Monte uma carteira de FIIs'!#REF!*12) -> 
T188: =IF(S188="","",T187+'Monte uma carteira de FIIs'!#REF!*12) -> 
T189: =IF(S189="","",T188+'Monte uma carteira de FIIs'!#REF!*12) -> 
T190: =IF(S190="","",T189+'Monte uma carteira de FIIs'!#REF!*12) -> 
T191: =IF(S191="","",T190+'Monte uma carteira de FIIs'!#REF!*12) -> 
T192: =IF(S192="","",T191+'Monte uma carteira de FIIs'!#REF!*12) -> 
T193: =IF(S193="","",T192+'Monte uma carteira de FIIs'!#REF!*12) -> 
T194: =IF(S194="","",T193+'Monte uma carteira de FIIs'!#REF!*12) -> 
T195: =IF(S195="","",T194+'Monte uma carteira de FIIs'!#REF!*12) -> 
T196: =IF(S196="","",T195+'Monte uma carteira de FIIs'!#REF!*12) -> 
T197: =IF(S197="","",T196+'Monte uma carteira de FIIs'!#REF!*12) -> 
T198: =IF(S198="","",T197+'Monte uma carteira de FIIs'!#REF!*12) -> 
T199: =IF(S199="","",T198+'Monte uma carteira de FIIs'!#REF!*12) -> 
T200: =IF(S200="","",T199+'Monte uma carteira de FIIs'!#REF!*12) -> 
... 282 more rows

Sheet Sheet1 (hidden)
A1: Nome | B1: Ticker | C1: Dividend Yield (Cotação Final)
C2: diária
C3: 30/06/2016 até 30/06/2017 | D3: 30/06/2017 até 30/06/2018 | E3: 30/06/2018 até 30/06/2019 | F3: 30/06/2019 até 30/06/2020 | G3: 30/06/2020 até 30/06/2021
A4: ALIANZA TRUST RENDA IMOBILIÁRIA FII - ALZR11 | B4: ALZR11 | E4: 0.07510181695 | F4: 0.04741694518 | G4: 0.05317013841
A5: BANESTES RECEBÍVEIS IMOBILIÁRIOS FII - BCRI11 | B5: BCRI11 | C5: 0.1100588086 | D5: 0.07889432767 | E5: 0.08341688745 | F5: 0.08409532259 | G5: 0.1097753963
A6: BARIGUI RENDIMENTOS IMOBILIÁRIOS I FII - BARI11 | B6: BARI11 | G6: 0.1357894737
A7: BB PROGRESSIVO FII - BBFI11B | B7: BBFI11B | C7: 0.1015258123 | D7: 0.1332449971 | E7: 0.09958440653 | F7: 0.1138272076 | G7: 0.1197869924
A8: BB PROGRESSIVO II FII - BBPO11 | B8: BBPO11 | C8: 0.08584544069 | D8: 0.09592226258 | E8: 0.0836338411 | F8: 0.07700405244 | G8: 0.1124062566
A9: BRADESCO CARTEIRA IMOBILIÁRIA ATIVA FII - BCIA11 | B9: BCIA11 | C9: 0.09400373768 | D9: 0.07776744186 | E9: 0.07269920734 | F9: 0.07907829275 | G9: 0.08337151471
A10: BRASIL PLURAL ABSOLUTO FUNDO DE FUNDOS FII - BPFF11 | B10: BPFF11 | C10: 0.08852988691 | D10: 0.09059350504 | E10: 0.0793767765 | F10: 0.09250550641 | G10: 0.08469909532
A11: BRAZIL REALTY FII - BZLI11 | B11: BZLI11 | E11: 0 | F11: 0 | G11: 0
A12: BRESCO LOGÍSTICA FII - BRCO11 | B12: BRCO11 | G12: 0.06534230239
A13: BTG PACTUAL CORPORATE OFFICE FUND FII - BRCR11 | B13: BRCR11 | C13: 0.09141598562 | D13: 0.05236790286 | E13: 0.1634588136 | F13: 0.06296903219 | G13: 0.06940844898
A14: BTG PACTUAL CRÉDITO IMOBILIÁRIO FII - BTCR11 | B14: BTCR11 | F14: 0.07241521265 | G14: 0.06726664642
A15: BTG PACTUAL FUNDO DE FUNDOS FII - BCFF11 | B15: BCFF11 | C15: 0.09297624636 | D15: 0.07793755349 | E15: 0.07092515941 | F15: 0.0652819584 | G15: 0.07649234068
A16: BTG PACTUAL LOGÍSTICA FII - BTLG11 | B16: BTLG11 | C16: 0.08249780997 | D16: 0.05885887749 | E16: 0.04139458892 | F16: 0.05319825562 | G16: 0.06488008547
A17: CAPITÂNIA REIT FOF FII - CPFF11 | B17: CPFF11 | G17: 0.08627783156
A18: CAPITÂNIA SECURITIES II FII - CPTS11 | B18: CPTS11 | C18: 0.1293393783 | D18: 0.09113720767 | E18: 0.08888677631 | F18: 0.07592186892 | G18: 0.1077050088
A19: CONTINENTAL SQUARE FARIA LIMA FII - FLMA11 | B19: FLMA11 | C19: 0.06844748858 | D19: 0.06065217391 | E19: 0.04546703297 | F19: 0.04684684685 | G19: 0.03576091687
A20: CSHG IMOBILIÁRIO FOF FII - HGFF11 | B20: HGFF11 | G20: 0.08486781262
A21: CSHG LOGÍSTICA FII - HGLG11 | B21: HGLG11 | C21: 0.08385542169 | D21: 0.08216961647 | E21: 0.05843539018 | F21: 0.04880488575 | G21: 0.0664322639
A22: CSHG PRIME OFFICES FII - HGPO11 | B22: HGPO11 | C22: 0.06860377358 | D22: 0.06 | E22: 0.04921052632 | F22: 0.05082524272 | G22: 0.05382143503
A23: CSHG REAL ESTATE FII - HGRE11 | B23: HGRE11 | C23: 0.08254716981 | D23: 0.08758278146 | E23: 0.05570093458 | F23: 0.05799314326 | G23: 0.06135904568
A24: CSHG RECEBÍVEIS IMOBILIÁRIOS FII - HGCR11 | B24: HGCR11 | C24: 0.1070764819 | D24: 0.08341305297 | E24: 0.07662134986 | F24: 0.07108532888 | G24: 0.0685759654
A25: CSHG RENDA URBANA FII - HGRU11 | B25: HGRU11 | F25: 0.06234769508 | G25: 0.06990772021
A26: DEVANT RECEBÍVEIS IMOBILIÁRIOS FII - DEVA11 | B26: DEVA11 | G26: 1
A27: FATOR VERITA FII - VRTA11 | B27: VRTA11 | C27: 0.1249489497 | D27: 0.0829588015 | E27: 0.08011310085 | F27: 0.08016406663 | G27: 0.08841240876
A28: GENERAL SHOPPING ATIVO E RENDA FII - FIGS11 | B28: FIGS11 | C28: 0.1290322581 | D28: 0.1449275362 | E28: 0.1330573872 | F28: 0.05447663566 | G28: 0.03292247811
A29: GGR COVEPI RENDA FII - GGRC11 | B29: GGRC11 | D29: 0.07376587012 | E29: 0.06917536822 | F29: 0.06371354743 | G29: 0.0719027622
A30: GRAND PLAZA SHOPPING FII - ABCP11 | B30: ABCP11 | C30: 0.05606060606 | D30: 0.06923611111 | E30: 0.05023396642 | F30: 0.05301396299 | G30: 0.04704690214
A31: GREEN TOWERS FII - GTWR11 | B31: GTWR11 | F31: 0.06793793161 | G31: 0.0811647619
A32: HABITAT RECEBÍVEIS PULVERIZADOS FII - HABT11 | B32: HABT11 | G32: 0.1264044944
A33: HECTARE CE FII - HCTR11 | B33: HCTR11 | G33: 0.1613853628
A34: HEDGE BRASIL SHOPPING FII - HGBS11 | B34: HGBS11 | C34: 0.07465309898 | D34: 0.06917808219 | E34: 0.06028702865 | F34: 0.06883949999 | G34: 0.02761909493
A35: HEDGE TOP FOFII 3 FII - HFOF11 | B35: HFOF11 | E35: 0.08550605251 | F35: 0.08336767721 | G35: 0.0766134154
A36: HOTEL MAXINVEST FII - HTMX11 | B36: HTMX11 | C36: 0.05427170565 | D36: 0.06133961984 | E36: 0.05568105797 | F36: 0.04951233851 | G36: 0
A37: HSI LOGÍSTICA FII - HSLG11 | B37: HSLG11
A38: HSI MALLS FII - HSML11 | B38: HSML11 | G38: 0.04552572707
A39: INDUSTRIAL DO BRASIL FII - FIIB11 | B39: FIIB11 | C39: 0.08333178821 | D39: 0.073711208 | E39: 0.06820734341 | F39: 0.06142276423 | G39: 0.06608020913
A40: IRIDIUM RECEBÍVEIS FII - IRDM11 | B40: IRDM11 | E40: 0.0819668343 | F40: 0.08076449374 | G40: 0.1053493747
A41: JS REAL ESTATE MULTIGESTÃO FII - JSRE11 | B41: JSRE11 | C41: 0.1033386328 | D41: 0.07447641417 | E41: 0.05991568751 | F41: 0.05960091299 | G41: 0.07016759777
A42: KINEA FUNDO DE FUNDOS IMOBILIÁRIOS FII - KFOF11 | B42: KFOF11 | F42: 0.05707865169 | G42: 0.0749477109
A43: KINEA HIGH YIELD CRI FII - KNHY11 | B43: KNHY11 | F43: 0.07127272727 | G43: 0.1010752688
A44: KINEA ÍNDICES DE PREÇOS FII - KNIP11 | B44: KNIP11 | D44: 0.07377968955 | E44: 0.07242798354 | F44: 0.07200361827 | G44: 0.1067852129
A45: KINEA RENDA IMOBILIÁRIA FII - KNRI11 | B45: KNRI11 | C45: 0.07394507703 | D45: 0.07382974244 | E45: 0.06081825845 | F45: 0.05096483959 | G45: 0.05771589351
A46: KINEA RENDIMENTOS IMOBILIÁRIOS FII - KNCR11 | B46: KNCR11 | C46: 0.1183426443 | D46: 0.07205607477 | E46: 0.06733238231 | F46: 0.06233766234 | G46: 0.04011111111
A47: KINEA SECURITIES FII - KNSC11 | B47: KNSC11
A48: MALLS BRASIL PLURAL FII - MALL11 | B48: MALL11 | E48: 0.07308066084 | F48: 0.06209786486 | G48: 0.05387840671
A49: MAUÁ CAPITAL RECEBÍVEIS IMOBILIÁRIOS FII - MCCI11 | B49: MCCI11 | G49: 0.07724783224
A50: MAXI RENDA FII - MXRF11 | B50: MXRF11 | C50: 0.1058116232 | D50: 0.07835051546 | E50: 0.07237988024 | F50: 0.08809019458 | G50: 0.08406134464
A51: MÉRITO DESENVOLVIMENTO IMOBILIÁRIO I FII - MFII11 | B51: MFII11 | C51: 0.1169249537 | D51: 0.1202251203 | E51: 0.08270654315 | F51: 0.09976038339 | G51: 0.1073400275
A52: MOGNO FOF FII - MGFF11 | B52: MGFF11 | E52: 0.07430406829 | F52: 0.0813817224 | G52: 0.08678384518
A53: OURINVEST JPP FII - OUJP11 | B53: OUJP11 | D53: 0.09550092899 | E53: 0.08894833072 | F53: 0.07192251715 | G53: 0.07894859634
A54: OURINVEST LOGÍSTICA FII - OULG11 | B54: OULG11 | F54: 0.08539631753 | G54: 0.09987921081
A55: PÁTRIA EDIFÍCIOS CORPORATIVOS FII - PATC11 | B55: PATC11 | F55: 0.0412847884 | G55: 0.04403953057
A56: PÁTRIA LOGÍSTICA FII - PATL11 | B56: PATL11
A57: PLURAL RECEBÍVEIS IMOBILIÁRIOS FII - PLCR11 | B57: PLCR11 | G57: 0.08151882441
A58: POLO RECEBÍVEIS IMOBILIÁRIOS II FII - PORD11 | B58: PORD11 | C58: 0.1405405405 | D58: 0.08973100334 | E58: 0.1080821068 | F58: 0.116583707 | G58: 0.09906384186
A59: QUASAR AGRO FII - QAGR11 | B59: QAGR11 | G59: 0.05105740375
A60: RB CAPITAL I FUNDO DE FUNDOS FII - RFOF11 | B60: RFOF11 | G60: 0.07984467904
A61: RB CAPITAL RENDA II FII - RBRD11 | B61: RBRD11 | C61: 0.0995626506 | D61: 0.1044557117 | E61: 0.08892414477 | F61: 0.09337855233 | G61: 0.3162049587
A62: RBR ALPHA MULTIESTRATÉGIA REAL ESTATE FII - RBRF11 | B62: RBRF11 | E62: 0.08724634187 | F62: 0.08115856833 | G62: 0.09365241355
A63: RBR PROPERTIES FII - RBRP11 | B63: RBRP11 | F63: 0.05294704932 | G63: 0.07358011121
A64: RBR RENDIMENTO HIGH GRADE FII - RBRR11 | B64: RBRR11 | E64: 0.07036707004 | F64: 0.06859505279 | G64: 0.07199287127
A65: REC RECEBÍVEIS IMOBILIÁRIOS FII - RECR11 | B65: RECR11 | E65: 0.1143401539 | F65: 0.09000470274 | G65: 0.1266364374
A66: REC RENDA IMOBILIÁRIA FII - RECT11 | B66: RECT11 | F66: 0.09614315683 | G66: 0.1089382216
A67: RIO BRAVO FUNDO DE FUNDOS FII - RBFF11 | B67: RBFF11 | C67: 0.08897321978 | D67: 0.08276034504 | E67: 0.07137681159 | F67: 0.107869044 | G67: 0.09326969047
A68: RIO BRAVO RENDA CORPORATIVA FII - RCRB11 | B68: RCRB11 | C68: 0.08447513812 | D68: 0.07671676477 | E68: 0.04052631579 | F68: 0.05192073904 | G68: 0.07086330935
A69: RIO BRAVO RENDA EDUCACIONAL FII - RBED11 | B69: RBED11 | C69: 0.09467415115 | D69: 0.09409898477 | E69: 0.08043715847 | F69: 0.06613054954 | G69: 0.08587877154
A70: RIO BRAVO RENDA VAREJO FII - RBVA11 | B70: RBVA11 | C70: 0.07760207869 | D70: 0.0870754717 | E70: 0.06852640227 | F70: 0.0775890593 | G70: 0.09295497956
A71: RIO NEGRO FII - RNGO11 | B71: RNGO11 | C71: 0.08474007826 | D71: 0.08052013003 | E71: 0.0728088767 | F71: 0.07203336282 | G71: 0.0828210935
A72: RIZA TERRAX FII - RZTR11 | B72: RZTR11
A73: SANTANDER PAPÉIS IMOBILIÁRIOS CDI FII - SADI11 | B73: SADI11 | G73: 0.02863529412
A74: SANTANDER RENDA DE ALUGUÉIS FII - SARE11 | B74: SARE11 | G74: 0.04880847391
A75: SDI RIO BRAVO RENDA LOGÍSTICA FII - SDIL11 | B75: SDIL11 | C75: 0.07597765363 | D75: 0.08746987952 | E75: 0.06530764823 | F75: 0.0604981036 | G75: 0.07420752169
A76: SP DOWNTOWN FII - SPTW11 | B76: SPTW11 | C76: 0.1057407406 | D76: 0.08954293629 | E76: 0.07974554129 | F76: 0.1063012295 | G76: 0.1962630153
A77: TELLUS PROPERTIES FII - TEPP11 | B77: TEPP11 | G77: 0.07410714286
A78: TG ATIVO REAL FII - TGAR11 | B78: TGAR11 | E78: 0.07588047258 | F78: 0.08241726478 | G78: 0.105432163
A79: TORDESILHAS EI FII - TORD11 | B79: TORD11 | G79: 0.1213774509
A80: TRX REAL ESTATE FII - TRXF11 | B80: TRXF11 | G80: 0.07468159052
A81: URCA PRIME RENDA FII - URPR11 | B81: URPR11
A82: VALORA CRI ÍNDICE DE PREÇO FII - VGIP11 | B82: VGIP11 | G82: 0.1148105231
A83: VALORA RE III FII - VGIR11 | B83: VGIR11 | F83: 0.08617462569 | G83: 0.06133806137
A84: VBI CRI FII - CVBI11 | B84: CVBI11 | G84: 0.1208712315
A85: VBI LOGISTICO FII - LVBI11 | B85: LVBI11 | F85: 0.05895641535 | G85: 0.06063824589
A86: VBI PRIME PROPERTIES FII - PVBI11 | B86: PVBI11
A87: VBI REITS FOF FII - RVBI11 | B87: RVBI11 | G87: 0.08805970149
A88: VECTIS JUROS REAL FII - VCJR11 | B88: VCJR11 | G88: 0.09238845144
A89: VINCI LOGÍSTICA FII - VILG11 | B89: VILG11 | F89: 0.05922780047 | G89: 0.06015114806
A90: VINCI OFFICES FII - VINO11 | B90: VINO11 | G90: 0.08142881143
A91: VINCI SHOPPING CENTERS FII - VISC11 | B91: VISC11 | E91: 0.06658251519 | F91: 0.0680750528 | G91: 0.03761682243
A92: VOTORANTIM LOGÍSTICA FII - VTLT11 | B92: VTLT11 | E92: 0.08148207227 | F92: 0.08089469027 | G92: 0.07846071878
A93: XP CORPORATE MACAÉ FII - XPCM11 | B93: XPCM11 | C93: 0.1057562077 | D93: 0.10236822 | E93: 0.09619512195 | F93: 0.1581858407 | G93: 0.2133651551
A94: XP CRÉDITO IMOBILIÁRIO FII - XPCI11 | B94: XPCI11 | G94: 0.08706467662
A95: XP INDUSTRIAL FII - XPIN11 | B95: XPIN11 | F95: 0.05947849509 | G95: 0.07404954802
A96: XP LOG FII - XPLG11 | B96: XPLG11 | E96: 0.06692055726 | F96: 0.05459087724 | G96: 0.06621130417
A97: XP MALLS FII - XPML11 | B97: XPML11 | E97: 0.05927265848 | F97: 0.04584242538 | G97: 0.03762942662
A98: XP PROPERTIES FII - XPPR11 | B98: XPPR11 | G98: 0.1110455503
A99: XP SELECTION FUNDO DE FUNDOS FII - XPSF11 | B99: XPSF11 | G99: 0.0954849932

Sheet Lista (hidden)
E2: ABCP11 | G2: Sim
E3: ALZR11 | G3: Não
E4: BARI11
E5: BBFI11B
E6: BBPO11
E7: BCFF11
E8: BCIA11
E9: BCRI11
E10: BPFF11
E11: BRCO11
E12: BRCR11
E13: BTCR11
E14: BTLG11
E15: BZLI11
E16: CPFF11
E17: CPTS11
E18: CVBI11
E19: DEVA11
E20: FIGS11
E21: FIIB11
E22: FLMA11
E23: GGRC11
E24: GTWR11
E25: HABT11
E26: HCTR11
E27: HFOF11
E28: HGBS11
E29: HGCR11
E30: HGFF11
E31: HGLG11
E32: HGPO11
E33: HGRE11
E34: HGRU11
E35: HSLG11
E36: HSML11
E37: HTMX11
E38: IRDM11
E39: JSRE11
E40: KFOF11
E41: KNCR11
E42: KNHY11
E43: KNIP11
E44: KNRI11
E45: KNSC11
E46: LVBI11
E47: MALL11
E48: MCCI11
E49: MFII11
E50: MGFF11
E51: MXRF11
E52: OUJP11
E53: OULG11
E54: PATC11
E55: PATL11
E56: PLCR11
E57: PORD11
E58: PVBI11
E59: QAGR11
E60: RBED11
E61: RBFF11
E62: RBRD11
E63: RBRF11
E64: RBRP11
E65: RBRR11
E66: RBVA11
E67: RCRB11
E68: RECR11
E69: RECT11
E70: RFOF11
E71: RNGO11
E72: RVBI11
E73: RZTR11
E74: SADI11
E75: SARE11
E76: SDIL11
E77: SPTW11
E78: TEPP11
E79: TGAR11
E80: TORD11
E81: TRXF11
E82: URPR11
E83: VCJR11
E84: VGIP11
E85: VGIR11
E86: VILG11
E87: VINO11
E88: VISC11
E89: VRTA11
E90: VTLT11
E91: XPCI11
E92: XPCM11
E93: XPIN11
E94: XPLG11
E95: XPML11
E96: XPPR11
E97: XPSF11
